Workbook

Sheet modList01 (hidden)

Sheet Инструкция
AA1: (требуется обновление)
B2: ="Код шаблона: " & GetCode() -> Код шаблона: JKH.OPEN.INFO.BALANCE.WARM
B3: ="Версия " & GetVersion() -> Версия 6.0.1
B5: Показатели, подлежащие раскрытию теплоснабжающими, теплосетевыми организациями
E7: • На рабочем месте должен быть установлен MS Office 2003 SP3, 2007 SP3, 2010 с полной версией MS Excel • Макросы во время работы должны быть включены (!) • Для корректной работы отчёта требуется выбрать низкий уровень безопасности (В меню MS Excel 2003: Сервис | Макрос | Безопасность | выбрать пункт «Низкая безопасность» | OK) (В меню MS Excel 2007/2010: Параметры Excel | Центр управления безопасностью | Параметры центра управления безопасностью | Параметры макросов | Включить все макросы | ОК) • Если Вы работаете в табличном процессоре MS Excel 2007 и выше, то можете использовать для работы формат XLSM (Книга Excel с поддержкой макросов). При работе в формате XLSM заметно быстрее происходит сохранение файла, а также уменьшается размер по сравнению с форматом XLS • Не рекомендуется снимать защиту с листов и каким-либо образом модифицировать защищаемые формулы и расчётные поля, в противном случае, отчёт будет отклонён системой • При сохранении не следует выбирать формат XLSX (Книга Excel), так как в указанном формате макросы, необходимые для работы отчёта, безвозвратно удаляются
E21: A | F21: - необязательные для заполнения | O21: A | P21: - с формулами и константами
E22: A | F22: - обязательные для заполнения | O22: A | P22: - с выбором значений до двойному клику,
P23: либо с возможностью выбора даты из календаря или ручного ввода
E35: Если в предложенном Вам списке необходимая организация, МР/МО отсутствуют, обновите реестры с помощью кнопок В результате синхронизации с базой данных список организаций (МР/МО) будет заменён актуальным (механизм синхронизации требует подключения к сети Интернет и основан на использовании протокола HTTPS (TCP порт 443)) Если после обновления Вам не удалось найти необходимую организацию в списке, обратитесь к ответственному за поддержание реестра Вашего региона. Информация о региональных органах регулирования доступна по ссылке:
E40: http://www.fstrf.ru/regions/region/showlist
E46: • При сохранении шаблона осуществляется проверка корректности данных, в том числе на наличие значений в ячейках, обязательных для заполнения • Если какая-то ячейка не удовлетворяет условию проверки, на лист «Проверка» добавляется гиперссылка на данную ячейку и указывается причина ошибки • В колонке «Статус» для каждого сообщения возможны 2 значения: ошибка и предупреждение • При наличии сообщений со статусом «Ошибка» шаблон будет отклонён системой и не будет загружен в хранилище данных, сообщения со статусом «Предупреждение» носят информационный характер, и такой шаблон будет принят системой
E58: Web-сайт: | H58: http://support.eias.ru/index.php?a=add&catid=5
E59: Дистрибутивы: | H59: http://eias.ru/?page=show_distrs
H60: для устранения ошибок (например, "Compile error in hidden module")
E70: Принципы работы с шаблоном
E71: Перед началом работы с шаблоном Вам необходимо нажать кнопку "Приступить к заполнению", после чего на форме выбора выбрать из выпадающего списка нужный субъект РФ. После выбора субъекта РФ в шаблоне отобразятся листы для заполнения.
E72: На листе «Титульный» нужно заполнить все ячейки голубого и синего цвета. Для создания печатной формы нажмите на иконку принтера на листе «Титульный» (левый верхний угол).
E73: Гиперссылки на листах вводите, не нарушая цвет ячейки (если копируете гиперссылку из браузера, то выполните двойной щелчок левой кнопки мыши по ячейке и только после этого можете вставить скопированный элемент).
E74: При вводе даты на расчетных листах необходимо выбрать дату из календаря (иконка справа от выбранной ячейки), либо ввести дату непосредственно в ячейку в формате - 'ДД.ММ.ГГГГ'.
E75: Если какой-либо из показателей на расчетных листах для Вашей организации отсутствует, введите в поле, обязательное для заполнение, «0» (для числовых показателей) и «-» (для текстовых).
E76: Внимательно следите за информационными сообщениями на расчетных листах.
E77: Все необходимые комментарии по всем формам Вы можете отразить на листе «Комментарии».
E79: Обосновывающие материалы (документы) необходимо загружать с помощью "ЕИАС Мониторинг"
E80: Инструкция | I80: http://eias.ru/files/shablon/manual_loading_through_monitoring.pdf
E82: E-mail: | H82: openinfo@eias.ru
E83: Web-сайт: | H83: http://eias.ru/?page=show_templates
E98: При наличии подключения к Интернет, можно автоматически проверять наличие доступных обновлений. Выберите способ оповещения о наличии обновлений для отчёта:
F100: проверять доступные обновления (рекомендуется) | AA100: y
F102: никогда не проверять наличие обновлений (не рекомендуется)

Sheet Лог обновления (hidden)
A1: Дата/Время | B1: Сообщение | C1: Статус
A3: 2016-04-26T11:22:32 | B3: Проверка доступных обновлений... | C3: Информация
A4: 2016-04-26T11:22:32 | B4: Версия шаблона 6.0.1 актуальна, обновление не требуется | C4: Информация
A5: 2016-04-26T16:49:48 | B5: Проверка доступных обновлений... | C5: Информация
A6: 2016-04-26T16:49:48 | B6: Версия шаблона 6.0.1 актуальна, обновление не требуется | C6: Информация
A7: 2016-04-29T13:22:39 | B7: Проверка доступных обновлений... | C7: Информация
A8: 2016-04-29T13:22:40 | B8: Версия шаблона 6.0.1 актуальна, обновление не требуется | C8: Информация
A9: 2016-04-29T15:48:12 | B9: Проверка доступных обновлений... | C9: Информация
A10: 2016-04-29T15:48:12 | B10: Версия шаблона 6.0.1 актуальна, обновление не требуется | C10: Информация
A11: 2017-04-13T08:59:36 | B11: Проверка доступных обновлений... | C11: Информация
A12: 2017-04-13T08:59:37 | B12: Версия шаблона 6.0.1 актуальна, обновление не требуется | C12: Информация
A13: 2017-04-13T09:09:24 | B13: Проверка доступных обновлений... | C13: Информация
A14: 2017-04-13T09:09:25 | B14: Версия шаблона 6.0.1 актуальна, обновление не требуется | C14: Информация
A15: 2017-04-13T09:09:47 | B15: Проверка доступных обновлений... | C15: Информация
A16: 2017-04-13T09:09:47 | B16: Версия шаблона 6.0.1 актуальна, обновление не требуется | C16: Информация
A17: 2017-04-13T12:41:58 | B17: Проверка доступных обновлений... | C17: Информация
A18: 2017-04-13T12:41:58 | B18: Версия шаблона 6.0.1 актуальна, обновление не требуется | C18: Информация
A19: 2017-04-13T15:21:03 | B19: Проверка доступных обновлений... | C19: Информация
A20: 2017-04-13T15:21:03 | B20: Версия шаблона 6.0.1 актуальна, обновление не требуется | C20: Информация
A21: 2017-04-14T12:58:24 | B21: Проверка доступных обновлений... | C21: Информация
A22: 2017-04-14T12:58:24 | B22: Версия шаблона 6.0.1 актуальна, обновление не требуется | C22: Информация
A23: 2017-04-17T10:03:20 | B23: Проверка доступных обновлений... | C23: Информация
A24: 2017-04-17T10:03:20 | B24: Версия шаблона 6.0.1 актуальна, обновление не требуется | C24: Информация
A25: 2017-04-17T15:20:49 | B25: Проверка доступных обновлений... | C25: Информация
A26: 2017-04-17T15:20:50 | B26: Версия шаблона 6.0.1 актуальна, обновление не требуется | C26: Информация
A27: 2017-04-17T16:23:19 | B27: Проверка доступных обновлений... | C27: Информация
A28: 2017-04-17T16:23:20 | B28: Версия шаблона 6.0.1 актуальна, обновление не требуется | C28: Информация
A29: 2017-04-18T09:26:50 | B29: Проверка доступных обновлений... | C29: Информация
A30: 2017-04-18T09:26:51 | B30: Версия шаблона 6.0.1 актуальна, обновление не требуется | C30: Информация
A31: 2017-04-19T09:57:35 | B31: Проверка доступных обновлений... | C31: Информация
A32: 2017-04-19T09:57:36 | B32: Версия шаблона 6.0.1 актуальна, обновление не требуется | C32: Информация
A33: 2017-04-19T12:27:33 | B33: Проверка доступных обновлений... | C33: Информация
A34: 2017-04-19T12:27:33 | B34: Версия шаблона 6.0.1 актуальна, обновление не требуется | C34: Информация
A35: 2017-04-19T12:29:18 | B35: Проверка доступных обновлений... | C35: Информация
A36: 2017-04-19T12:29:18 | B36: Версия шаблона 6.0.1 актуальна, обновление не требуется | C36: Информация
A37: 2017-04-20T14:35:18 | B37: Проверка доступных обновлений... | C37: Информация
A38: 2017-04-20T14:35:19 | B38: Версия шаблона 6.0.1 актуальна, обновление не требуется | C38: Информация
A39: 2017-04-20T15:39:57 | B39: Проверка доступных обновлений... | C39: Информация
A40: 2017-04-20T15:39:58 | B40: Версия шаблона 6.0.1 актуальна, обновление не требуется | C40: Информация
A41: 2017-04-24T08:53:41 | B41: Проверка доступных обновлений... | C41: Информация
A42: 2017-04-24T08:53:42 | B42: Версия шаблона 6.0.1 актуальна, обновление не требуется | C42: Информация
A43: 2017-04-24T12:15:57 | B43: Проверка доступных обновлений... | C43: Информация
A44: 2017-04-24T12:15:57 | B44: Версия шаблона 6.0.1 актуальна, обновление не требуется | C44: Информация
A45: 2017-04-24T14:03:06 | B45: Проверка доступных обновлений... | C45: Информация
A46: 2017-04-24T14:03:07 | B46: Версия шаблона 6.0.1 актуальна, обновление не требуется | C46: Информация
A47: 2017-04-24T15:22:10 | B47: Проверка доступных обновлений... | C47: Информация
A48: 2017-04-24T15:22:10 | B48: Версия шаблона 6.0.1 актуальна, обновление не требуется | C48: Информация
A49: 2017-04-25T18:49:07 | B49: Проверка доступных обновлений... | C49: Информация
A50: 2017-04-25T18:49:07 | B50: Версия шаблона 6.0.1 актуальна, обновление не требуется | C50: Информация

Sheet Титульный
F1: 26498149
F4: =version -> Версия 6.0.1
E5: Показатели, подлежащие раскрытию теплоснабжающими, теплосетевыми организациями
E7: Субъект РФ | F7: Забайкальский край
E9: Публикация | F9: На сайте регулирующего органа
A11: Сайт организации в сети Интернет | E11: По желанию организации информация раскрыта в дополнительных источниках публикации? | F11: нет
E13: Отчетный период (год) | F13: 2016
E15: Является ли данное юридическое лицо подразделением (филиалом) другой организации | F15: нет
E17: Наименование организации | F17: ПАО "ТГК-14"
E18: Наименование филиала
E19: ИНН | F19: 7534018889
E20: КПП | F20: 753401001
E22: Вид деятельности | F22: Производство (комбинированная выработка)+передача+сбыт
E24: Производство
E25: Передача
E26: Сбыт
E28: Режим налогообложения | F28: общий
E30: Регулируемая организация осуществляет сдачу годового бухгалтерского баланса в налоговые органы | F30: да
E32: Дата направления годового бухгалтерского баланса в налоговые органы | F32: 22.03.2017
E34: Превышает ли выручка от регулируемой деятельности 80% совокупной выручки за отчетный год | F34: нет
E36: Организация выполняет инвестиционную программу | F36: да
A38: Печатное издание | E38: Отсутствует Интернет в границах территории муниципальных образований, где организация осуществляет регулируемые услуги | F38: нет
F40: Адрес регулируемой организации
E41: Юридический адрес | F41: г. Чита, ул. Профсоюзная, 23
E42: Почтовый адрес | F42: г. Чита, ул. Профсоюзная, 23
F44: Руководитель
E45: Фамилия, имя, отчество | F45: Мясник Виктор Чеславович
E46: (код) номер телефона | F46: (3022) 38-45-59
F48: Главный бухгалтер
E49: Фамилия, имя, отчество | F49: Шобанова Валентина Ивановна
E50: (код) номер телефона | F50: (3022) 38-45-59
F52: Должностное лицо, ответственное за составление формы
E53: Фамилия, имя, отчество | F53: Бузова Наталья Сергеевна
E54: Должность | F54: Экономист ОБПиТО
E55: (код) номер телефона | F55: 8(3022)384654
E56: e-mail | F56: buzova@chita.tgk-14.com

Sheet Список МО
D4: Дифференциация тарифа
D5: =IF(org=0,"Не определено",org) -> ПАО "ТГК-14"
F7: Система теплоснабжения
E8: Условный порядковый номер | F8: 3
E9: Описание | F9: Приаргунское
D11: № п/п | E11: Муниципальный район | F11: № п/п | G11: Муниципальное образование | H11: ОКТМО
D12: 1 | E12: 2 | F12: 3 | G12: 4 | H12: 5
D13: 0 | F13: 0
C14: О | D14: 1 | E14: Приаргунский муниципальный район | F14: 1 | G14: Приаргунское | H14: 76638151
G15: Добавить МО
E16: Добавить МР

Sheet Показатели (факт)
D5: Информация об основных показателях финансово-хозяйственной деятельности регулируемых организаций, включая структуру основных производственных затрат (в части регулируемой деятельности) *
D6: =IF(org=0,"Не определено",org) -> ПАО "ТГК-14"
D8: № п/п | E8: Информация, подлежащая раскрытию | F8: Единица измерения | G8: Значение
D9: 1 | E9: 2 | F9: 3 | G9: 4
D10: 1 | E10: Выручка от регулируемой деятельности, в том числе по видам деятельности: | F10: тыс руб | G10: =SUM(G11:G13) -> 119,852.09
D11: 1.0
C12: О | D12: 1.1 | E12: Тепловая энергия | F12: тыс руб | G12: =[1]ЧГ!$NK$7+[1]ЧТЭС!$XE$7 -> 119,852.09
E13: Добавить вид деятельности
D14: 2 | E14: Себестоимость производимых товаров (оказываемых услуг) по регулируемому виду деятельности, включая: | F14: тыс руб | G14: =SUM(G15:G16)+G29+SUM(G32:G40)+G43+G46+G48 -> 167,626.61
D15: 2.1 | E15: Расходы на покупаемую тепловую энергию (мощность), теплоноситель | F15: тыс руб | G15: 0.00
D16: 2.2 | E16: Расходы на топливо | F16: тыс руб | G16: =SUMIF(flagSum_List02_2,"p",G17:G28) -> 44,222.33
A17: 2.2.0 | D17: =A17 -> 2.2.0
A18: 2.2.1 | C18: О | D18: =A18 -> 2.2.1 | E18: уголь бурый | F18: x | G18: =G19*G20+G21 -> 43,922.21 | H18: p
D19: =A18&".1" -> 2.2.1.1 | E19: Объем | F19: тнт | G19: =[2]Т!$CV$172 -> 45,025.84
D20: =A18&".2" -> 2.2.1.2 | E20: Стоимость за единицу объема | F20: тыс руб | G20: 0.82
D21: =A18&".3" -> 2.2.1.3 | E21: Стоимость доставки | F21: тыс руб | G21: =[2]Т!$CV$185/1000*[2]Т!$CV$172 -> 6,967.42
D22: =A18&".4" -> 2.2.1.4 | E22: Способ приобретения | F22: x | G22: торги/аукционы
A23: 2.2.2 | C23: О | D23: =A23 -> 2.2.2 | E23: мазут | F23: x | G23: =G24*G25+G26 -> 300.11 | H23: p
D24: =A23&".1" -> 2.2.2.1 | E24: Объем | F24: тнт | G24: =[2]Т!$BP$172 -> 24.81
D25: =A23&".2" -> 2.2.2.2 | E25: Стоимость за единицу объема | F25: тыс руб | G25: =[2]Т!$BP$166/1000 -> 12.10
D26: =A23&".3" -> 2.2.2.3 | E26: Стоимость доставки | F26: тыс руб | G26: 0.00
D27: =A23&".4" -> 2.2.2.4 | E27: Способ приобретения | F27: x | G27: торги/аукционы
E28: Добавить вид топлива
D29: 2.3 | E29: Расходы на покупаемую электрическую энергию (мощность), используемую в технологическом процессе | F29: тыс руб | G29: =[1]ЧГ!$NK$56+[1]ЧТЭС!$XE$56 -> 1,753.61
D30: 2.3.1 | E30: Средневзвешенная стоимость 1 кВт.ч (с учетом мощности) | F30: руб | G30: =[3]факт!$Z$101 -> 1.31
D31: 2.3.2 | E31: Объем приобретенной электрической энергии | F31: тыс кВт.ч | G31: =G29/G30 -> 1,341.1417
D32: 2.4 | E32: Расходы на приобретение холодной воды, используемой в технологическом процессе | F32: тыс руб | G32: 0.00
D33: 2.5 | E33: Расходы на хим.реагенты, используемые в технологическом процессе | F33: тыс руб | G33: =[1]ЧГ!$NK$22 -> 301.72
D34: 2.6 | E34: Расходы на оплату труда основного производственного персонала | F34: тыс руб | G34: =[1]ЧГ!$NK$63+[1]ЧТЭС!$XE$63 -> 60,406.72
D35: 2.7 | E35: Отчисления на социальные нужды основного производственного персонала | F35: тыс руб | G35: =[1]ЧГ!$NK$68+[1]ЧТЭС!$XE$68 -> 19,084.08
D36: 2.8 | E36: Расходы на оплату труда административно-управленческого персонала | F36: тыс руб | G36: =[4]ЧТЭС!$KG$63+[4]ЧГ!$NK$63 -> 4,359.36
D37: 2.9 | E37: Отчисления на социальные нужды административно-управленческого персонала | F37: тыс руб | G37: =[4]ЧТЭС!$KG$68+[4]ЧГ!$NK$68 -> 1,071.18
D38: 2.10 | E38: Расходы на амортизацию основных производственных средств | F38: тыс руб | G38: =[1]ЧГ!$NK$77+[1]ЧТЭС!$XE$77 -> 5,068.49
D39: 2.11 | E39: Расходы на аренду имущества, используемого для осуществления регулируемого вида деятельности | F39: тыс руб | G39: =[1]ЧГ!$NK$93+[1]ЧТЭС!$XE$93 -> 797.43
D40: 2.12 | E40: Общепроизводственные расходы, в том числе отнесенные к ним: | F40: тыс руб | G40: =[1]ЧГ!$NK$10+[1]ЧГ!$NK$31+[1]ЧТЭС!$XE$10+[1]ЧТЭС!$XE$31-G33 -> 22,606.99
D41: 2.12.1 | E41: Расходы на текущий ремонт | F41: тыс руб | G41: =[1]ЧГ!$NK$12+[1]ЧГ!$NK$34+[1]ЧТЭС!$XE$12+[1]ЧТЭС!$XE$34 -> 15,578.83
D42: 2.12.2 | E42: Расходы на капитальный ремонт | F42: тыс руб | G42: =[1]ЧГ!$NK$13 -> 1,091.81
D43: 2.13 | E43: Общехозяйственные расходы, в том числе отнесенные к ним: | F43: тыс руб | G43: =[4]ЧТЭС!$KG$9+[4]ЧГ!$NK$9-G36-G37 -> 2,007.08
D44: 2.13.1 | E44: Расходы на текущий ремонт | F44: тыс руб | G44: =[4]ЧТЭС!$KG$12+[4]ЧГ!$NK$12 -> 13.61
D45: 2.13.2 | E45: Расходы на капитальный ремонт | F45: тыс руб | G45: 0.00
D46: 2.14 | E46: Расходы на капитальный и текущий ремонт основных производственных средств, в том числе: | F46: тыс руб | G46: 0.00
D47: 2.14.1 | E47: Информация об объемах товаров и услуг, их стоимости и способах приобретения у тех организаций, сумма оплаты услуг которых превышает 20 процентов суммы расходов по указанной статье расходов | F47: x | G47: отсутствует
D48: 2.15 | E48: Прочие расходы, которые подлежат отнесению на регулируемые виды деятельности в соответствии с законодательством РФ | F48: тыс руб | G48: =SUM(G49:G51) -> 5,947.63
D49: 2.15.0
C50: О | D50: 2.15.1 | E50: Прочие затраты | F50: тыс руб | G50: =[1]ЧГ!$NK$80+[1]ЧТЭС!$XE$80-G39 -> 5,947.63
E51: Добавить прочие расходы
D52: 3 | E52: Валовая прибыль (убытки) от реализации товаров и оказания услуг по регулируемому виду деятельности | F52: тыс руб | G52: =G12-List02_p3 -> -47,774.52
D53: 4 | E53: Чистая прибыль, полученная от регулируемого вида деятельности, в том числе: | F53: тыс руб | G53: 0.00
D54: 4.1 | E54: Размер расходования чистой прибыли на финансирование мероприятий, предусмотренных инвестиционной программой | F54: тыс руб | G54: 0.00
D55: 5 | E55: Сведения об изменении стоимости основных фондов, в том числе за счет их ввода в эксплуатацию (вывода из эксплуатации), а также стоимости их переоценки | F55: тыс руб | G55: =G56+G57 -> 6,572.77
D56: 5.1 | E56: За счет ввода (вывода) из эксплуатации | F56: тыс руб | G56: =[5]TDSheet!$E$7055 -> 6,572.77
D57: 6 | E57: Стоимость переоценки основных фондов | F57: тыс руб | G57: 0.00
D58: 7 | E58: Годовая бухгалтерская отчетность, включая бухгалтерский баланс и приложения к нему | F58: x | G58: http://www.tgk-14.com/upload/medialibrary/03a/%D0%A2%D0%93%D0%9A-14%20%D0%91%D1%83%D1%85%D0%B3%D0%B0%D0%BB%D1%82%D0%B5%D1%80%D1%81%D0%BA%D0%B0%D1%8F%20%D0%BE%D1%82%D1%87%D0%B5%D1%82%D0%BD%D0%BE%D1%81%D1%82%D1%8C%20%D0%BF%D0%BE%20%D0%A0%D0%A1%D0%91%D0%A3%202015%20%D0%B3%D0%BE%D0%B4.pdf
D59: 8 | E59: Установленная тепловая мощность объектов основных фондов, используемых для осуществления регулируемых видов деятельности, в том числе по каждому источнику тепловой энергии: | F59: Гкал/ч | G59: ='[6]Показатели (факт)'!$G$59 -> 110.00
D60: 8.0
E61: Добавить источник тепловой энергии
D62: 9 | E62: Тепловая нагрузка по договорам, заключенным в рамках осуществления регулируемых видов деятельности | F62: Гкал/ч | G62: ='[6]Показатели (факт)'!$G$62 -> 38.30
D63: 10 | E63: Объем вырабатываемой регулируемой организацией тепловой энергии в рамках осуществления регулируемых видов деятельности | F63: тыс Гкал | G63: ='[7]Показатели (факт)'!$G$63 -> 122.5820
D64: 11 | E64: Объем приобретаемой регулируемой организацией тепловой энергии в рамках осуществления регулируемых видов деятельности | F64: тыс Гкал | G64: 0.0000
D65: 12 | E65: Объем тепловой энергии, отпускаемой потребителям по договорам, заключенным в рамках осуществления регулируемых видов деятельности, в том числе: | F65: тыс Гкал | G65: =SUM(G66:G67) -> 94.5121
D66: 12.1 | E66: Определенном по приборам учета | F66: тыс Гкал | G66: ='[8]Отпуск ТЭ'!$J$48/1000 -> 11.5033
D67: 12.2 | E67: Определенном расчетным путем (нормативам потребления коммунальных услуг) | F67: тыс Гкал | G67: ='[8]Отпуск ТЭ'!$K$48/1000 -> 83.0088
D68: 13 | E68: Нормативы технологических потерь при передаче тепловой энергии, теплоносителя по тепловым сетям, утвержденные уполномоченным органом | F68: Ккал/ч.мес | G68: 27.87
D69: 14 | E69: Фактический объем потерь при передаче тепловой энергии | F69: тыс Гкал | G69: ='[7]Показатели (факт)'!$G$69 -> 26.0080
D70: 15 | E70: Среднесписочная численность основного производственного персонала | F70: чел | G70: =118+6 -> 124.00
D71: 16 | E71: Среднесписочная численность административно-управленческого персонала | F71: чел | G71: 3.15
D72: 17 | E72: Удельный расход условного топлива на единицу тепловой энергии, отпускаемой в тепловую сеть, в том числе с разбивкой по источникам тепловой энергии, используемым для осуществления регулируемых видов деятельности | F72: кг усл. топл/Гкал | G72: ='[7]Показатели (факт)'!$G$72 -> 169.3500
D73: 17.0
E74: Добавить источник тепловой энергии
D75: 18 | E75: Удельный расход электрической энергии на производство (передачу) тепловой энергии на единицу тепловой энергии, отпускаемой потребителям по договорам, заключенным в рамках осуществления регулируемой деятельности | F75: тыс кВт.ч/Гкал | G75: ='[7]Показатели (факт)'!$G$75 -> 42.80
D76: 19 | E76: Удельный расход холодной воды на производство (передачу) тепловой энергии на единицу тепловой энергии, отпускаемой потребителям по договорам, заключенным в рамках осуществления регулируемой деятельности | F76: м3/Гкал | G76: 0.00
D77: 20 | E77: Комментарии | F77: x | G77: -
D79: * | E79: Раскрывается не позднее 30 дней со дня сдачи годового бухгалтерского баланса в налоговые органы.

Sheet Показатели (2) (hidden)
D5: Информация об объемах товаров и услуг, их стоимости и способах приобретения *
D6: =IF(org=0,"Не определено",org) -> ПАО "ТГК-14"
D8: № п/п | E8: Наименование поставщика | G8: № п/п | H8: Способ приобретения | I8: Реквизиты договора | K8: № п/п | L8: Наименование товара/услуги | M8: Объем приобретенных товаров, услуг | N8: Единица измерения объема | O8: Стоимость, тыс.руб. | P8: Доля расходов, % (от суммы расходов по указанной статье)
D9: 1 | E9: 2 | G9: 3 | H9: 4 | I9: 5 | K9: 6 | L9: 7 | M9: 8 | N9: 9 | O9: 10 | P9: 11
E10: Расходы на ремонт (текущий и капитальный) основных производственных средств итого. Из них товары и услуги, приобретенные у организаций, сумма оплаты услуг которых превышает 20% суммы расходов по статье | O10: =List02_costs_OPS -> 0.00
D11: 0
E12: Добавить поставщика
D14: * | E14: Раскрывается не позднее 30 дней со дня сдачи годового бухгалтерского баланса в налоговые органы.

Sheet Потр. характеристики
D5: Информация об основных потребительских характеристиках регулируемых товаров и услуг *
D6: =IF(org=0,"Не определено",org) -> ПАО "ТГК-14"
D8: № п/п | E8: Информация, подлежащая раскрытию | F8: Значение | G8: Ссылки на документы
D9: 1 | E9: 2 | F9: 3 | G9: 4
D10: 1 | E10: Количество аварий на тепловых сетях (единиц на км) ** | F10: 0.00
D11: 2 | E11: Количество аварий на источниках тепловой энергии (единиц на источник)** | F11: 0.00
D12: 3 | E12: Показатели надежности и качества, установленные в соответствии с законодательством РФ | F12: 0.00 | G12: https://tariff.eias.ru/disclo/get_file?p_guid=501cbc73-8d26-4cb9-883a-6bf221617425
D13: 4 | E13: Доля числа исполненных в срок договоров о подключении (технологическом присоединении), % | F13: 100.00
D14: 5 | E14: Средняя продолжительность рассмотрения заявок на подключение (технологическое присоединение), дней | F14: 30.00
D15: 6 | E15: Комментарии | F15: -
D17: * | E17: Раскрывается не позднее 30 дней со дня сдачи годового бухгалтерского баланса в налоговые органы.
D18: ** | E18: Учитывать любое нарушение системы.

Sheet Инвестиции
E5: Информация об инвестиционных программах *
E6: =IF(org=0,"Не определено",org) -> ПАО "ТГК-14"
J8: О | K8: О | L8: О | M8: О | N8: О | O8: О | P8: О | Q8: О | R8: О
E9: № п/п | F9: Наименование показателя | G9: Единица измерения | H9: Значение | I9: ="Мероприятие " & I10-4 -> Мероприятие 0 | J9: Мероприятие 1 | K9: Мероприятие 2 | L9: Мероприятие 3 | M9: Мероприятие 4 | N9: Мероприятие 5 | O9: Мероприятие 6 | P9: Мероприятие 7 | Q9: Мероприятие 8 | R9: Мероприятие 9 | S9: Добавить мероприятие
E10: 1 | F10: 2 | G10: 3 | H10: 4 | I10: 4 | J10: 5 | K10: 6 | L10: 7 | M10: 8 | N10: 9 | O10: 10 | P10: 11 | Q10: 12 | R10: 13
E11: 1 | F11: Наименование инвестиционной программы (мероприятия) | G11: x | H11: Инвестиционная программа ПАО "ТГК-14" в сфере теплоснабжения по объектам Забайкальского края | J11: Установка конвейерных весов ВК-2м Приаргунской ТЭЦ | K11: Реконструкция ОРУ-110 кВ Приаргунской ТЭЦ с заменой вакуумного выключателя на элегазовый | L11: Реконструкция оборудования главного щита управления Приаргунской ТЭЦ с заменой релейных защит | M11: Модернизация системы аварийного питания станции (Приаргунская ТЭЦ) с заменой аккумуляторной батареи | N11: Монтаж дизель-генератора для аварийного питания СДТУ Приаргунской ТЭЦ | O11: Реконструкция тепловой сети №3 с Ду 100 мм на Ду 150 мм от ТК3-31 до УТ-1 (п. Приаргунск) | P11: Модернизация ОРУ с заменой масляных выключателей на вакуумные (Приаргунская ТЭЦ) | Q11: Установка системы контроля удаленным доступом (Приаргунская ТЭЦ) | R11: Модернизация ТФУ с установкой подогревателя химически очищенной воды (Приаргунская ТЭЦ)
E12: 2 | F12: Дата утверждения инвестиционной программы | G12: x | H12: 30.10.2015 | I12: x | J12: x | K12: x | L12: x | M12: x | N12: x | O12: x | P12: x | Q12: x | R12: x
E13: 3 | F13: Цели инвестиционной программы | G13: x | H13: прочее | I13: x | J13: x | K13: x | L13: x | M13: x | N13: x | O13: x | P13: x | Q13: x | R13: x
E14: 4 | F14: Наименование органа исполнительной власти субъекта РФ, утвердившего инвестиционную программу | G14: x | H14: РСТ Забайкальского края | I14: x | J14: x | K14: x | L14: x | M14: x | N14: x | O14: x | P14: x | Q14: x | R14: x
E15: 5 | F15: Наименование органа местного самоуправления, согласовавшего инвестиционную программу | G15: x | H15: Администрация городского округа "Город Чита" | I15: x | J15: x | K15: x | L15: x | M15: x | N15: x | O15: x | P15: x | Q15: x | R15: x
E16: 6 | F16: Срок начала реализации инвестиционной программы (мероприятия) | G16: x | H16: 01.01.2016 | J16: 01.01.2015 | K16: 01.01.2015 | L16: 01.01.2016 | M16: 01.01.2016 | N16: 01.01.2016 | O16: 01.01.2016 | P16: 01.01.2017 | Q16: 01.01.2017 | R16: 01.01.2017
E17: 7 | F17: Срок окончания реализации инвестиционной программы (мероприятия) | G17: x | H17: 31.12.2018 | J17: 31.12.2016 | K17: 31.12.2016 | L17: 31.12.2017 | M17: 31.12.2016 | N17: 31.12.2016 | O17: 31.12.2016 | P17: 31.12.2017 | Q17: 31.12.2017 | R17: 31.12.2017
E18: 8 | F18: Потребности в финансовых средствах, необходимых для реализации инвестиционной программы на год, в том числе по источникам финансирования | G18: тыс руб | H18: =SUM(I18:S18) -> 24,408.80 | I18: =SUMIF(List06_flag_year,"y",I19:I39) -> 0.00 | J18: 503.00 | K18: 7,379.00 | L18: 6,800.00 | M18: 7,140.00 | N18: 188.80 | O18: 1,191.00 | P18: =SUMIF(List06_flag_year,"y",P19:P39) -> 725.00 | Q18: 216.00 | R18: 266.00
A19: 8.0 | E19: =A19 -> 8.0 | G19: тыс руб | H19: =SUM(H20:H21) -> 0.00 | I19: 0.00 | J19: 0.00 | K19: 0.00 | L19: 0.00 | M19: 0.00 | N19: 0.00 | O19: 0.00 | P19: =SUM(P20:P21) -> 0.00 | Q19: 0.00 | R19: 0.00 | S19: y
B20: 1 | E20: =A19&"."&B20 -> 8.0.1 | G20: тыс руб | H20: =SUM(I20:S20) -> 0.00
F21: Добавить источники
A22: 8.1 | C22: О | E22: =A22 -> 8.1 | F22: 2016 | G22: тыс руб | H22: =SUM(H23:H26) -> 21,994.80 | I22: 0.00 | J22: 503.00 | K22: 7,379.00 | L22: 5,593.00 | M22: 7,140.00 | N22: 188.80 | O22: 1,191.00 | P22: =SUM(P23:P26) -> 0.00 | Q22: 0.00 | R22: 0.00 | S22: y
B23: 1 | E23: =A22&"."&B23 -> 8.1.1 | F23: амортизация | G23: тыс руб | H23: =SUM(I23:S23) -> 21,994.80 | J23: 503.00 | K23: 7,379.00 | L23: 5,593.00 | M23: 7,140.00 | N23: 188.80 | O23: 1,191.00 | P23: 0.00 | Q23: 0.00 | R23: 0.00
B24: 2 | D24: О | E24: =$A$22&"."&$B$24 -> 8.1.2 | F24: прибыль, направляемая на инвестиции | G24: тыс руб | H24: =SUM(I24:S24) -> 0.00 | J24: 0.00 | K24: 0.00 | L24: 0.00 | M24: 0.00 | N24: 0.00 | O24: 0.00 | P24: 0.00 | Q24: 0.00 | R24: 0.00
B25: 3 | D25: О | E25: =$A$22&"."&$B$25 -> 8.1.3 | F25: плата за подключение | G25: тыс руб | H25: =SUM(I25:S25) -> 0.00 | J25: 0.00 | K25: 0.00 | L25: 0.00 | M25: 0.00 | N25: 0.00 | O25: 0.00 | P25: 0.00 | Q25: 0.00 | R25: 0.00
F26: Добавить источники
A27: 8.2 | C27: О | E27: =A27 -> 8.2 | F27: 2017 | G27: тыс руб | H27: =SUM(H28:H32) -> 2,414.00 | I27: 0.00 | J27: 0.00 | K27: 0.00 | L27: 1,207.00 | M27: 0.00 | N27: 0.00 | O27: 0.00 | P27: =SUM(P28:P32) -> 725.00 | Q27: 216.00 | R27: 266.00 | S27: y
B28: 1 | E28: =A27&"."&B28 -> 8.2.1 | F28: амортизация | G28: тыс руб | H28: =SUM(I28:S28) -> 2,414.00 | J28: 0.00 | K28: 0.00 | L28: 1,207.00 | M28: 0.00 | N28: 0.00 | O28: 0.00 | P28: 725.00 | Q28: 216.00 | R28: 266.00
B29: 2 | D29: О | E29: =$A$27&"."&$B$29 -> 8.2.2 | F29: прибыль, направляемая на инвестиции | G29: тыс руб | H29: =SUM(I29:S29) -> 0.00 | J29: 0.00 | K29: 0.00 | L29: 0.00 | M29: 0.00 | N29: 0.00 | O29: 0.00 | P29: 0.00 | Q29: 0.00 | R29: 0.00
B30: 3 | D30: О | E30: =$A$27&"."&$B$30 -> 8.2.3 | F30: плата за подключение | G30: тыс руб | H30: =SUM(I30:S30) -> 0.00 | J30: 0.00 | K30: 0.00 | L30: 0.00 | M30: 0.00 | N30: 0.00 | O30: 0.00 | P30: 0.00 | Q30: 0.00 | R30: 0.00
B31: 4 | D31: О | E31: =$A$27&"."&$B$31 -> 8.2.4 | F31: кредиты банков | G31: тыс руб | H31: =SUM(I31:S31) -> 0.00 | J31: 0.00 | K31: 0.00 | L31: 0.00 | M31: 0.00 | N31: 0.00 | O31: 0.00 | P31: 0.00 | Q31: 0.00 | R31: 0.00
F32: Добавить источники
A33: 8.3 | C33: О | E33: =A33 -> 8.3 | F33: 2018 | G33: тыс руб | H33: =SUM(H34:H38) -> 0.00 | I33: 0.00 | J33: 0.00 | K33: 0.00 | L33: 0.00 | M33: 0.00 | N33: 0.00 | O33: 0.00 | P33: =SUM(P34:P38) -> 0.00 | Q33: 0.00 | R33: 0.00 | S33: y
B34: 1 | E34: =A33&"."&B34 -> 8.3.1 | F34: амортизация | G34: тыс руб | H34: =SUM(I34:S34) -> 0.00 | J34: 0.00 | K34: 0.00 | L34: 0.00 | M34: 0.00 | N34: 0.00 | O34: 0.00 | P34: 0.00 | Q34: 0.00 | R34: 0.00
B35: 2 | D35: О | E35: =$A$33&"."&$B$35 -> 8.3.2 | F35: прибыль, направляемая на инвестиции | G35: тыс руб | H35: =SUM(I35:S35) -> 0.00 | J35: 0.00 | K35: 0.00 | L35: 0.00 | M35: 0.00 | N35: 0.00 | O35: 0.00 | P35: 0.00 | Q35: 0.00 | R35: 0.00
B36: 3 | D36: О | E36: =$A$33&"."&$B$36 -> 8.3.3 | F36: плата за подключение | G36: тыс руб | H36: =SUM(I36:S36) -> 0.00 | J36: 0.00 | K36: 0.00 | L36: 0.00 | M36: 0.00 | N36: 0.00 | O36: 0.00 | P36: 0.00 | Q36: 0.00 | R36: 0.00
B37: 4 | D37: О | E37: =$A$33&"."&$B$37 -> 8.3.4 | F37: кредиты банков | G37: тыс руб | H37: =SUM(I37:S37) -> 0.00 | J37: 0.00 | K37: 0.00 | L37: 0.00 | M37: 0.00 | N37: 0.00 | O37: 0.00 | P37: 0.00 | Q37: 0.00 | R37: 0.00
F38: Добавить источники
F39: Добавить год
E40: 9 | F40: Целевые показатели инвестиционной программы | H40: x | I40: x | J40: x | K40: x | L40: x | M40: x | N40: x | O40: x | P40: x | Q40: x | R40: x
E41: 9.1 | F41: Срок окупаемости | G41: лет | H41: x | I41: x | J41: x | K41: x | L41: x | M41: x | N41: x | O41: x | P41: x | Q41: x | R41: x
E42: 9.1.1 | F42: Факт | G42: лет | H42: 0.00 | J42: 0.00 | K42: 0.00 | L42: 0.00 | M42: 0.00 | N42: 0.00 | O42: 0.00 | P42: 0.00 | Q42: 0.00 | R42: 0.00
E43: 9.1.2 | F43: План | G43: лет | H43: 0.00 | I43: 0.00 | J43: 0.00 | K43: 0.00 | L43: 0.00 | M43: 0.00 | N43: 0.00 | O43: 0.00 | P43: 0.00 | Q43: 0.00 | R43: 0.00
E44: 9.2 | F44: Перебои в снабжении потребителей | G44: часов на потребителя | H44: x | I44: x | J44: x | K44: x | L44: x | M44: x | N44: x | O44: x | P44: x | Q44: x | R44: x
E45: 9.2.1 | F45: Факт | G45: часов на потребителя | H45: 0.00 | J45: 0.00 | K45: 0.00 | L45: 0.00 | M45: 0.00 | N45: 0.00 | O45: 0.00 | P45: 0.00 | Q45: 0.00 | R45: 0.00
E46: 9.2.2 | F46: План | G46: часов на потребителя | H46: 0.00 | I46: 0.00 | J46: 0.00 | K46: 0.00 | L46: 0.00 | M46: 0.00 | N46: 0.00 | O46: 0.00 | P46: 0.00 | Q46: 0.00 | R46: 0.00
E47: 9.3 | F47: Продолжительность (бесперебойность) поставки товаров и услуг | G47: час/день | H47: x | I47: x | J47: x | K47: x | L47: x | M47: x | N47: x | O47: x | P47: x | Q47: x | R47: x
E48: 9.3.1 | F48: Факт | G48: час/день | H48: 0.00 | J48: 0.00 | K48: 0.00 | L48: 0.00 | M48: 0.00 | N48: 0.00 | O48: 0.00 | P48: 0.00 | Q48: 0.00 | R48: 0.00
E49: 9.3.2 | F49: План | G49: час/день | H49: 0.00 | I49: 0.00 | J49: 0.00 | K49: 0.00 | L49: 0.00 | M49: 0.00 | N49: 0.00 | O49: 0.00 | P49: 0.00 | Q49: 0.00 | R49: 0.00
E50: 9.4 | F50: Уровень потерь и неучтенного потребления | G50: % | H50: x | I50: x | J50: x | K50: x | L50: x | M50: x | N50: x | O50: x | P50: x | Q50: x | R50: x
E51: 9.4.1 | F51: Факт | G51: % | H51: 0.00 | J51: 0.00 | K51: 0.00 | L51: 0.00 | M51: 0.00 | N51: 0.00 | O51: 0.00 | P51: 0.00 | Q51: 0.00 | R51: 0.00
E52: 9.4.2 | F52: План | G52: % | H52: 0.00 | I52: 0.00 | J52: 0.00 | K52: 0.00 | L52: 0.00 | M52: 0.00 | N52: 0.00 | O52: 0.00 | P52: 0.00 | Q52: 0.00 | R52: 0.00
E53: 9.5 | F53: Коэффициент потерь | G53: Гкал/км | H53: x | I53: x | J53: x | K53: x | L53: x | M53: x | N53: x | O53: x | P53: x | Q53: x | R53: x
E54: 9.5.1 | F54: Факт | G54: Гкал/км | H54: 0.00 | J54: 0.00 | K54: 0.00 | L54: 0.00 | M54: 0.00 | N54: 0.00 | O54: 0.00 | P54: 0.00 | Q54: 0.00 | R54: 0.00
E55: 9.5.2 | F55: План | G55: Гкал/км | H55: 0.00 | I55: 0.00 | J55: 0.00 | K55: 0.00 | L55: 0.00 | M55: 0.00 | N55: 0.00 | O55: 0.00 | P55: 0.00 | Q55: 0.00 | R55: 0.00
E56: 9.6 | F56: Износ систем коммунальной инфраструктуры | G56: % | H56: x | I56: x | J56: x | K56: x | L56: x | M56: x | N56: x | O56: x | P56: x | Q56: x | R56: x
E57: 9.6.1 | F57: Факт | G57: % | H57: 0.00 | J57: 0.00 | K57: 0.00 | L57: 0.00 | M57: 0.00 | N57: 0.00 | O57: 0.00 | P57: 0.00 | Q57: 0.00 | R57: 0.00
E58: 9.6.2 | F58: План | G58: % | H58: 0.00 | I58: 0.00 | J58: 0.00 | K58: 0.00 | L58: 0.00 | M58: 0.00 | N58: 0.00 | O58: 0.00 | P58: 0.00 | Q58: 0.00 | R58: 0.00
E59: 9.7 | F59: Износ оборудования производства (котлы) | G59: % | H59: x | I59: x | J59: x | K59: x | L59: x | M59: x | N59: x | O59: x | P59: x | Q59: x | R59: x
E60: 9.7.1 | F60: Факт | G60: % | H60: 0.00 | J60: 0.00 | K60: 0.00 | L60: 0.00 | M60: 0.00 | N60: 0.00 | O60: 0.00 | P60: 0.00 | Q60: 0.00 | R60: 0.00
E61: 9.7.2 | F61: План | G61: % | H61: 0.00 | I61: 0.00 | J61: 0.00 | K61: 0.00 | L61: 0.00 | M61: 0.00 | N61: 0.00 | O61: 0.00 | P61: 0.00 | Q61: 0.00 | R61: 0.00
E62: 9.8 | F62: Износ оборудования передачи тепловой энергии (сети) | G62: % | H62: x | I62: x | J62: x | K62: x | L62: x | M62: x | N62: x | O62: x | P62: x | Q62: x | R62: x
E63: 9.8.1 | F63: Факт | G63: % | H63: 0.00 | J63: 0.00 | K63: 0.00 | L63: 0.00 | M63: 0.00 | N63: 0.00 | O63: 0.00 | P63: 0.00 | Q63: 0.00 | R63: 0.00
E64: 9.8.2 | F64: План | G64: % | H64: 0.00 | I64: 0.00 | J64: 0.00 | K64: 0.00 | L64: 0.00 | M64: 0.00 | N64: 0.00 | O64: 0.00 | P64: 0.00 | Q64: 0.00 | R64: 0.00
E65: 9.9 | F65: Удельный вес сетей, нуждающихся в замене | G65: % | H65: x | I65: x | J65: x | K65: x | L65: x | M65: x | N65: x | O65: x | P65: x | Q65: x | R65: x
E66: 9.9.1 | F66: Факт | G66: % | H66: 0.00 | J66: 0.00 | K66: 0.00 | L66: 0.00 | M66: 0.00 | N66: 0.00 | O66: 0.00 | P66: 0.00 | Q66: 0.00 | R66: 0.00
E67: 9.9.2 | F67: План | G67: % | H67: 0.00 | I67: 0.00 | J67: 0.00 | K67: 0.00 | L67: 0.00 | M67: 0.00 | N67: 0.00 | O67: 0.00 | P67: 0.00 | Q67: 0.00 | R67: 0.00
E68: 9.10 | F68: Обеспеченность потребления товаров и услуг приборами учета | G68: % | H68: x | I68: x | J68: x | K68: x | L68: x | M68: x | N68: x | O68: x | P68: x | Q68: x | R68: x
E69: 9.10.1 | F69: Факт | G69: % | H69: 0.00 | J69: 0.00 | K69: 0.00 | L69: 0.00 | M69: 0.00 | N69: 0.00 | O69: 0.00 | P69: 0.00 | Q69: 0.00 | R69: 0.00
E70: 9.10.2 | F70: План | G70: % | H70: 0.00 | I70: 0.00 | J70: 0.00 | K70: 0.00 | L70: 0.00 | M70: 0.00 | N70: 0.00 | O70: 0.00 | P70: 0.00 | Q70: 0.00 | R70: 0.00
E71: 9.11 | F71: Расход топлива на 1 Гкал | G71: т усл.топл/Гкал | H71: x | I71: x | J71: x | K71: x | L71: x | M71: x | N71: x | O71: x | P71: x | Q71: x | R71: x
E72: 9.11.1 | F72: Факт | G72: т усл.топл/Гкал | H72: 0.00 | J72: 0.00 | K72: 0.00 | L72: 0.00 | M72: 0.00 | N72: 0.00 | O72: 0.00 | P72: 0.00 | Q72: 0.00 | R72: 0.00
E73: 9.11.2 | F73: План | G73: т усл.топл/Гкал | H73: 0.00 | I73: 0.00 | J73: 0.00 | K73: 0.00 | L73: 0.00 | M73: 0.00 | N73: 0.00 | O73: 0.00 | P73: 0.00 | Q73: 0.00 | R73: 0.00
E74: 9.12 | F74: Расход электроэнергии на выработку 1 Гкал | G74: кВт.ч/Гкал | H74: x | I74: x | J74: x | K74: x | L74: x | M74: x | N74: x | O74: x | P74: x | Q74: x | R74: x
E75: 9.12.1 | F75: Факт | G75: кВт.ч/Гкал | H75: 0.00 | J75: 0.00 | K75: 0.00 | L75: 0.00 | M75: 0.00 | N75: 0.00 | O75: 0.00 | P75: 0.00 | Q75: 0.00 | R75: 0.00
E76: 9.12.2 | F76: План | G76: кВт.ч/Гкал | H76: 0.00 | I76: 0.00 | J76: 0.00 | K76: 0.00 | L76: 0.00 | M76: 0.00 | N76: 0.00 | O76: 0.00 | P76: 0.00 | Q76: 0.00 | R76: 0.00
E77: 9.13 | F77: Расход электроэнергии на передачу 1 Гкал | G77: кВт.ч/Гкал | H77: x | I77: x | J77: x | K77: x | L77: x | M77: x | N77: x | O77: x | P77: x | Q77: x | R77: x
E78: 9.13.1 | F78: Факт | G78: кВт.ч/Гкал | H78: 0.00 | J78: 0.00 | K78: 0.00 | L78: 0.00 | M78: 0.00 | N78: 0.00 | O78: 0.00 | P78: 0.00 | Q78: 0.00 | R78: 0.00
E79: 9.13.2 | F79: План | G79: кВт.ч/Гкал | H79: 0.00 | I79: 0.00 | J79: 0.00 | K79: 0.00 | L79: 0.00 | M79: 0.00 | N79: 0.00 | O79: 0.00 | P79: 0.00 | Q79: 0.00 | R79: 0.00
E80: 9.14 | F80: Количество аварий (с учетом котельных) | G80: ед | H80: x | I80: x | J80: x | K80: x | L80: x | M80: x | N80: x | O80: x | P80: x | Q80: x | R80: x
E81: 9.14.1 | F81: Факт | G81: ед | H81: 0.00 | J81: 0.00 | K81: 0.00 | L81: 0.00 | M81: 0.00 | N81: 0.00 | O81: 0.00 | P81: 0.00 | Q81: 0.00 | R81: 0.00
E82: 9.14.2 | F82: План | G82: ед | H82: 0.00 | I82: 0.00 | J82: 0.00 | K82: 0.00 | L82: 0.00 | M82: 0.00 | N82: 0.00 | O82: 0.00 | P82: 0.00 | Q82: 0.00 | R82: 0.00
E83: 9.15 | F83: Количество аварий на 1 км тепловых сетей | G83: ед | H83: x | I83: x | J83: x | K83: x | L83: x | M83: x | N83: x | O83: x | P83: x | Q83: x | R83: x
E84: 9.15.1 | F84: Факт | G84: ед | H84: 0.00 | J84: 0.00 | K84: 0.00 | L84: 0.00 | M84: 0.00 | N84: 0.00 | O84: 0.00 | P84: 0.00 | Q84: 0.00 | R84: 0.00
E85: 9.15.2 | F85: План | G85: ед | H85: 0.00 | I85: 0.00 | J85: 0.00 | K85: 0.00 | L85: 0.00 | M85: 0.00 | N85: 0.00 | O85: 0.00 | P85: 0.00 | Q85: 0.00 | R85: 0.00
E86: 9.16 | F86: Производительность труда на 1 человека | G86: тыс руб/чел | H86: x | I86: x | J86: x | K86: x | L86: x | M86: x | N86: x | O86: x | P86: x | Q86: x | R86: x
E87: 9.16.1 | F87: Факт | G87: тыс руб/чел | H87: 0.00 | J87: 0.00 | K87: 0.00 | L87: 0.00 | M87: 0.00 | N87: 0.00 | O87: 0.00 | P87: 0.00 | Q87: 0.00 | R87: 0.00
E88: 9.16.2 | F88: План | G88: тыс руб/чел | H88: 0.00 | I88: 0.00 | J88: 0.00 | K88: 0.00 | L88: 0.00 | M88: 0.00 | N88: 0.00 | O88: 0.00 | P88: 0.00 | Q88: 0.00 | R88: 0.00
A89: 9.16 | E89: =A89 -> 9.16 | H89: x | I89: x | J89: x | K89: x | L89: x | M89: x | N89: x | O89: x | P89: x | Q89: x | R89: x
E90: =A89&".1" -> 9.16.1 | F90: Факт | G90: =IF(G89="","x",G89) -> x
E91: =A89&".2" -> 9.16.2 | F91: План | G91: =IF(G89="","x",G89) -> x
A92: 9.17 | D92: О | E92: =A92 -> 9.17 | F92: Удельный расход условного топлива на выработку единицы тепловой энергии и (или) теплоносителя | G92: кг.у.т./Гкал | H92: x | I92: x | J92: x | K92: x | L92: x | M92: x | N92: x | O92: x | P92: x | Q92: x | R92: x
E93: =A92&".1" -> 9.17.1 | F93: Факт | G93: =IF(G92="","x",G92) -> кг.у.т./Гкал | H93: 169.35 | J93: 0.00 | K93: 0.00 | L93: 0.00 | M93: 0.00 | N93: 0.00 | O93: 0.00 | P93: 0.00 | Q93: 0.00 | R93: 0.00
E94: =A92&".2" -> 9.17.2 | F94: План | G94: =IF(G92="","x",G92) -> кг.у.т./Гкал | H94: 170.99 | J94: 0.00 | K94: 0.00 | L94: 0.00 | M94: 0.00 | N94: 0.00 | O94: 0.00 | P94: 0.00 | Q94: 0.00 | R94: 0.00
A95: 9.18 | D95: О | E95: =A95 -> 9.18 | F95: Удельный расход электрической энергии на транспортировку теплоносителя | G95: кВт·ч/м3 | H95: x | I95: x | J95: x | K95: x | L95: x | M95: x | N95: x | O95: x | P95: x | Q95: x | R95: x
E96: =A95&".1" -> 9.18.1 | F96: Факт | G96: =IF(G95="","x",G95) -> кВт·ч/м3 | H96: 0.32 | J96: 0.00 | K96: 0.00 | L96: 0.00 | M96: 0.00 | N96: 0.00 | O96: 0.00 | P96: 0.00 | Q96: 0.00 | R96: 0.00
E97: =A95&".2" -> 9.18.2 | F97: План | G97: =IF(G95="","x",G95) -> кВт·ч/м3 | H97: 0.36 | J97: 0.00 | K97: 0.00 | L97: 0.00 | M97: 0.00 | N97: 0.00 | O97: 0.00 | P97: 0.00 | Q97: 0.00 | R97: 0.00
A98: 9.19 | D98: О | E98: =A98 -> 9.19 | F98: Износ объектов системы теплоснабжения с выделением процента износа объектов, существующих на начало реализации Инвестиционной программы | G98: % | H98: x | I98: x | J98: x | K98: x | L98: x | M98: x | N98: x | O98: x | P98: x | Q98: x | R98: x
E99: =A98&".1" -> 9.19.1 | F99: Факт | G99: =IF(G98="","x",G98) -> % | H99: 82.30 | J99: 0.00 | K99: 0.00 | L99: 0.00 | M99: 0.00 | N99: 0.00 | O99: 0.00 | P99: 0.00 | Q99: 0.00 | R99: 0.00
E100: =A98&".2" -> 9.19.2 | F100: План | G100: =IF(G98="","x",G98) -> % | H100: 82.30 | J100: 0.00 | K100: 0.00 | L100: 0.00 | M100: 0.00 | N100: 0.00 | O100: 0.00 | P100: 0.00 | Q100: 0.00 | R100: 0.00
A101: 9.20 | D101: О | E101: =A101 -> 9.20 | F101: Потери тепловой энергии при передаче тепловой энергии по тепловым сетям | G101: Гкал в год | H101: x | I101: x | J101: x | K101: x | L101: x | M101: x | N101: x | O101: x | P101: x | Q101: x | R101: x
E102: =A101&".1" -> 9.20.1 | F102: Факт | G102: =IF(G101="","x",G101) -> Гкал в год | H102: 25,988.00 | J102: 0.00 | K102: 0.00 | L102: 0.00 | M102: 0.00 | N102: 0.00 | O102: 0.00 | P102: 0.00 | Q102: 0.00 | R102: 0.00
E103: =A101&".2" -> 9.20.2 | F103: План | G103: =IF(G101="","x",G101) -> Гкал в год | H103: 28,000.00 | J103: 0.00 | K103: 0.00 | L103: 0.00 | M103: 0.00 | N103: 0.00 | O103: 0.00 | P103: 0.00 | Q103: 0.00 | R103: 0.00
A104: 9.21 | D104: О | E104: =A104 -> 9.21 | F104: Потери тепловой энергии при передаче тепловой энергии по тепловым сетям | G104: % от полезного отпуска тепловой энергии | H104: x | I104: x | J104: x | K104: x | L104: x | M104: x | N104: x | O104: x | P104: x | Q104: x | R104: x
E105: =A104&".1" -> 9.21.1 | F105: Факт | G105: =IF(G104="","x",G104) -> % от полезного отпуска тепловой энергии | H105: 27.49 | J105: 0.00 | K105: 0.00 | L105: 0.00 | M105: 0.00 | N105: 0.00 | O105: 0.00 | P105: 0.00 | Q105: 0.00 | R105: 0.00
E106: =A104&".2" -> 9.21.2 | F106: План | G106: =IF(G104="","x",G104) -> % от полезного отпуска тепловой энергии | H106: 22.60 | J106: 0.00 | K106: 0.00 | L106: 0.00 | M106: 0.00 | N106: 0.00 | O106: 0.00 | P106: 0.00 | Q106: 0.00 | R106: 0.00
A107: 9.22 | D107: О | E107: =A107 -> 9.22 | F107: Потери теплоносителя при передаче тепловой энергии по тепловым сетям | G107: тонн в год для воды | H107: x | I107: x | J107: x | K107: x | L107: x | M107: x | N107: x | O107: x | P107: x | Q107: x | R107: x
E108: =A107&".1" -> 9.22.1 | F108: Факт | G108: =IF(G107="","x",G107) -> тонн в год для воды | H108: 216,993.00 | J108: 0.00 | K108: 0.00 | L108: 0.00 | M108: 0.00 | N108: 0.00 | O108: 0.00 | P108: 0.00 | Q108: 0.00 | R108: 0.00
E109: =A107&".2" -> 9.22.2 | F109: План | G109: =IF(G107="","x",G107) -> тонн в год для воды | H109: 305,000.00 | J109: 0.00 | K109: 0.00 | L109: 0.00 | M109: 0.00 | N109: 0.00 | O109: 0.00 | P109: 0.00 | Q109: 0.00 | R109: 0.00
F110: Добавить показатель
E111: 10 | F111: Использование инвестиционных средств за отчетный год | G111: тыс руб | H111: x | I111: x | J111: x | K111: x | L111: x | M111: x | N111: x | O111: x | P111: x | Q111: x | R111: x
A112: 10.0 | E112: =A112 -> 10.0 | F112: Всего, в том числе по источникам финансирования: | G112: тыс руб | H112: =SUM(I112:S112) -> 18,669.54 | I112: =SUM(I113:I116) -> 0.00 | J112: 502.22 | K112: 7,328.61 | L112: 3,864.71 | M112: 5,895.54 | N112: 258.20 | O112: 820.27 | P112: =SUM(P113:P116) -> 0.00 | Q112: 0.00 | R112: 0.00
E113: =A112&".1" -> 10.0.1 | F113: I квартал | G113: тыс руб | H113: =SUM(I113:S113) -> 0.00 | I113: =SUMIF($F$117:$F$147,$F113,I$117:I$147) -> 0.00 | J113: 0.00 | K113: 0.00 | L113: 0.00 | M113: 0.00 | N113: 0.00 | O113: 0.00 | P113: 0.00 | Q113: 0.00 | R113: 0.00
E114: =A112&".2" -> 10.0.2 | F114: II квартал | G114: тыс руб | H114: =SUM(I114:S114) -> 0.00 | I114: 0.00 | J114: 0.00 | K114: 0.00 | L114: 0.00 | M114: 0.00 | N114: 0.00 | O114: 0.00 | P114: 0.00 | Q114: 0.00 | R114: 0.00
E115: =A112&".3" -> 10.0.3 | F115: III квартал | G115: тыс руб | H115: =SUM(I115:S115) -> 0.00 | I115: 0.00 | J115: 0.00 | K115: 0.00 | L115: 0.00 | M115: 0.00 | N115: 0.00 | O115: 0.00 | P115: 0.00 | Q115: 0.00 | R115: 0.00
E116: =A112&".4" -> 10.0.4 | F116: IV квартал | G116: тыс руб | H116: =SUM(I116:S116) -> 18,669.54 | I116: 0.00 | J116: 502.22 | K116: 7,328.61 | L116: 3,864.71 | M116: 5,895.54 | N116: 258.20 | O116: 820.27 | P116: 0.00 | Q116: 0.00 | R116: 0.00
A117: 10.0 | E117: =A117 -> 10.0 | G117: тыс руб | H117: =SUM(H118:H121) -> 0.00 | I117: 0.00 | J117: 0.00 | K117: 0.00 | L117: 0.00 | M117: 0.00 | N117: 0.00 | O117: 0.00 | P117: =SUM(P118:P121) -> 0.00 | Q117: 0.00 | R117: 0.00
E118: =A117&".1" -> 10.0.1 | F118: I квартал | G118: тыс руб | H118: =SUM(I118:S118) -> 0.00
E119: =A117&".2" -> 10.0.2 | F119: II квартал | G119: тыс руб | H119: =SUM(I119:S119) -> 0.00
E120: =A117&".3" -> 10.0.3 | F120: III квартал | G120: тыс руб | H120: =SUM(I120:S120) -> 0.00
E121: =A117&".4" -> 10.0.4 | F121: IV квартал | G121: тыс руб | H121: =SUM(I121:S121) -> 0.00
A122: 10.1 | D122: О | E122: =A122 -> 10.1 | F122: амортизация | G122: тыс руб | H122: =SUM(H123:H126) -> 18,669.54 | I122: 0.00 | J122: 502.22 | K122: 7,328.61 | L122: 3,864.71 | M122: 5,895.54 | N122: 258.20 | O122: 820.27 | P122: =SUM(P123:P126) -> 0.00 | Q122: 0.00 | R122: 0.00
E123: =A122&".1" -> 10.1.1 | F123: I квартал | G123: тыс руб | H123: =SUM(I123:S123) -> 0.00 | J123: 0.00 | K123: 0.00 | L123: 0.00 | M123: 0.00 | N123: 0.00 | O123: 0.00 | P123: 0.00 | Q123: 0.00 | R123: 0.00
E124: =A122&".2" -> 10.1.2 | F124: II квартал | G124: тыс руб | H124: =SUM(I124:S124) -> 0.00 | J124: 0.00 | K124: 0.00 | L124: 0.00 | M124: 0.00 | N124: 0.00 | O124: 0.00 | P124: 0.00 | Q124: 0.00 | R124: 0.00
E125: =A122&".3" -> 10.1.3 | F125: III квартал | G125: тыс руб | H125: =SUM(I125:S125) -> 0.00 | J125: 0.00 | K125: 0.00 | L125: 0.00 | M125: 0.00 | N125: 0.00 | O125: 0.00 | P125: 0.00 | Q125: 0.00 | R125: 0.00
E126: =A122&".4" -> 10.1.4 | F126: IV квартал | G126: тыс руб | H126: =SUM(I126:S126) -> 18,669.54 | J126: 502.22 | K126: 7,328.61 | L126: 3,864.71 | M126: 5,895.54 | N126: 258.20 | O126: 820.27 | P126: 0.00 | Q126: 0.00 | R126: 0.00
A127: 10.2 | D127: О | E127: =A127 -> 10.2 | F127: прибыль, направляемая на инвестиции | G127: тыс руб | H127: =SUM(H128:H131) -> 0.00 | I127: 0.00 | J127: 0.00 | K127: 0.00 | L127: 0.00 | M127: 0.00 | N127: 0.00 | O127: 0.00 | P127: =SUM(P128:P131) -> 0.00 | Q127: 0.00 | R127: 0.00
E128: =A127&".1" -> 10.2.1 | F128: I квартал | G128: тыс руб | H128: =SUM(I128:S128) -> 0.00 | J128: 0.00 | K128: 0.00 | L128: 0.00 | M128: 0.00 | N128: 0.00 | O128: 0.00 | P128: 0.00 | Q128: 0.00 | R128: 0.00
E129: =A127&".2" -> 10.2.2 | F129: II квартал | G129: тыс руб | H129: =SUM(I129:S129) -> 0.00 | J129: 0.00 | K129: 0.00 | L129: 0.00 | M129: 0.00 | N129: 0.00 | O129: 0.00 | P129: 0.00 | Q129: 0.00 | R129: 0.00
E130: =A127&".3" -> 10.2.3 | F130: III квартал | G130: тыс руб | H130: =SUM(I130:S130) -> 0.00 | J130: 0.00 | K130: 0.00 | L130: 0.00 | M130: 0.00 | N130: 0.00 | O130: 0.00 | P130: 0.00 | Q130: 0.00 | R130: 0.00
E131: =A127&".4" -> 10.2.4 | F131: IV квартал | G131: тыс руб | H131: =SUM(I131:S131) -> 0.00 | J131: 0.00 | K131: 0.00 | L131: 0.00 | M131: 0.00 | N131: 0.00 | O131: 0.00 | P131: 0.00 | Q131: 0.00 | R131: 0.00
A132: 10.3 | D132: О | E132: =A132 -> 10.3 | F132: плата за подключение | G132: тыс руб | H132: =SUM(H133:H136) -> 0.00 | I132: 0.00 | J132: 0.00 | K132: 0.00 | L132: 0.00 | M132: 0.00 | N132: 0.00 | O132: 0.00 | P132: =SUM(P133:P136) -> 0.00 | Q132: 0.00 | R132: 0.00
E133: =A132&".1" -> 10.3.1 | F133: I квартал | G133: тыс руб | H133: =SUM(I133:S133) -> 0.00 | J133: 0.00 | K133: 0.00 | L133: 0.00 | M133: 0.00 | N133: 0.00 | O133: 0.00 | P133: 0.00 | Q133: 0.00 | R133: 0.00
E134: =A132&".2" -> 10.3.2 | F134: II квартал | G134: тыс руб | H134: =SUM(I134:S134) -> 0.00 | J134: 0.00 | K134: 0.00 | L134: 0.00 | M134: 0.00 | N134: 0.00 | O134: 0.00 | P134: 0.00 | Q134: 0.00 | R134: 0.00
E135: =A132&".3" -> 10.3.3 | F135: III квартал | G135: тыс руб | H135: =SUM(I135:S135) -> 0.00 | J135: 0.00 | K135: 0.00 | L135: 0.00 | M135: 0.00 | N135: 0.00 | O135: 0.00 | P135: 0.00 | Q135: 0.00 | R135: 0.00
E136: =A132&".4" -> 10.3.4 | F136: IV квартал | G136: тыс руб | H136: =SUM(I136:S136) -> 0.00 | J136: 0.00 | K136: 0.00 | L136: 0.00 | M136: 0.00 | N136: 0.00 | O136: 0.00 | P136: 0.00 | Q136: 0.00 | R136: 0.00
A137: 10.4 | D137: О | E137: =A137 -> 10.4 | F137: прочие средства | G137: тыс руб | H137: =SUM(H138:H141) -> 0.00 | I137: 0.00 | J137: 0.00 | K137: 0.00 | L137: 0.00 | M137: 0.00 | N137: 0.00 | O137: 0.00 | P137: =SUM(P138:P141) -> 0.00 | Q137: 0.00 | R137: 0.00
E138: =A137&".1" -> 10.4.1 | F138: I квартал | G138: тыс руб | H138: =SUM(I138:S138) -> 0.00 | J138: 0.00 | K138: 0.00 | L138: 0.00 | M138: 0.00 | N138: 0.00 | O138: 0.00 | P138: 0.00 | Q138: 0.00 | R138: 0.00
E139: =A137&".2" -> 10.4.2 | F139: II квартал | G139: тыс руб | H139: =SUM(I139:S139) -> 0.00 | J139: 0.00 | K139: 0.00 | L139: 0.00 | M139: 0.00 | N139: 0.00 | O139: 0.00 | P139: 0.00 | Q139: 0.00 | R139: 0.00
E140: =A137&".3" -> 10.4.3 | F140: III квартал | G140: тыс руб | H140: =SUM(I140:S140) -> 0.00 | J140: 0.00 | K140: 0.00 | L140: 0.00 | M140: 0.00 | N140: 0.00 | O140: 0.00 | P140: 0.00 | Q140: 0.00 | R140: 0.00
E141: =A137&".4" -> 10.4.4 | F141: IV квартал | G141: тыс руб | H141: =SUM(I141:S141) -> 0.00 | J141: 0.00 | K141: 0.00 | L141: 0.00 | M141: 0.00 | N141: 0.00 | O141: 0.00 | P141: 0.00 | Q141: 0.00 | R141: 0.00
A142: 10.5 | D142: О | E142: =A142 -> 10.5 | F142: кредиты банков | G142: тыс руб | H142: =SUM(H143:H146) -> 0.00 | I142: 0.00 | J142: 0.00 | K142: 0.00 | L142: 0.00 | M142: 0.00 | N142: 0.00 | O142: 0.00 | P142: =SUM(P143:P146) -> 0.00 | Q142: 0.00 | R142: 0.00
E143: =A142&".1" -> 10.5.1 | F143: I квартал | G143: тыс руб | H143: =SUM(I143:S143) -> 0.00 | J143: 0.00 | K143: 0.00 | L143: 0.00 | M143: 0.00 | N143: 0.00 | O143: 0.00 | P143: 0.00 | Q143: 0.00 | R143: 0.00
E144: =A142&".2" -> 10.5.2 | F144: II квартал | G144: тыс руб | H144: =SUM(I144:S144) -> 0.00 | J144: 0.00 | K144: 0.00 | L144: 0.00 | M144: 0.00 | N144: 0.00 | O144: 0.00 | P144: 0.00 | Q144: 0.00 | R144: 0.00
E145: =A142&".3" -> 10.5.3 | F145: III квартал | G145: тыс руб | H145: =SUM(I145:S145) -> 0.00 | J145: 0.00 | K145: 0.00 | L145: 0.00 | M145: 0.00 | N145: 0.00 | O145: 0.00 | P145: 0.00 | Q145: 0.00 | R145: 0.00
E146: =A142&".4" -> 10.5.4 | F146: IV квартал | G146: тыс руб | H146: =SUM(I146:S146) -> 0.00 | J146: 0.00 | K146: 0.00 | L146: 0.00 | M146: 0.00 | N146: 0.00 | O146: 0.00 | P146: 0.00 | Q146: 0.00 | R146: 0.00
F147: Добавить источники
E149: * | F149: Раскрывается не позднее 30 дней со дня сдачи годового бухгалтерского баланса в налоговые органы.

Sheet Инвестиции исправления
D5: Внесение изменений в инвестиционную программу *
D6: =IF(org=0,"Не определено",org) -> ПАО "ТГК-14"
D8: № п/п | E8: Дата внесения изменений | F8: Внесенные изменения
D9: 1 | E9: 2 | F9: 3
D10: 0
C11: О | D11: 1 | E11: 30.11.2016 | F11: Изменение перечня мероприятий, объемов освоения и финансированния, размера источников и их соотношения по отношению друг к другу
E12: Добавить строку
D14: * | E14: Раскрывается регулируемой организацией в течение 10 календарных дней со дня принятия органом исполнительной власти субъекта Российской Федерации решения о внесении изменений в инвестиционную программу

Sheet Ссылки на публикации (hidden)
D5: Ссылки на публикации
D6: =IF(org=0,"Не определено",org) -> ПАО "ТГК-14"
D9: № п/п | E9: Содержание | F9: Наименование источника публикации | G9: Дата размещения информации | H9: Номер печатного издания | I9: Дата печатного издания | J9: Ссылка на PDF копии издания | K9: Адрес страницы официального сайта организации в сети интернет, на которой размещена раскрываемая информация
D10: 1 | E10: 2 | F10: 3 | G10: 4 | H10: 5 | I10: 6 | J10: 7 | K10: 8
A11: 1 | D11: =A11 -> 1 | E11: Информация об основных показателях финансово-хозяйственной деятельности регулируемой организации, включая структуру основных производственных затрат (в части регулируемой деятельности) (п.19 Постановления Правительства Российской Федерации от 05 июля 2013 г. N 570 "О стандартах раскрытия информации теплоснабжающими, теплосетевыми организациями и органами регулирования")
D12: =A11&".1" -> 1.1 | E12: Сайт организации в сети Интернет | H12: x | I12: x | J12: x
A13: 2 | D13: =A13 -> 2 | E13: Информация об основных потребительских характеристиках регулируемых товаров и услуг, оказываемых регулируемой организацией (п.20 Постановления Правительства Российской Федерации от 05 июля 2013 г. N 570 "О стандартах раскрытия информации теплоснабжающими, теплосетевыми организациями и органами регулирования")
D14: =A13&".1" -> 2.1 | E14: Сайт организации в сети Интернет | H14: x | I14: x | J14: x
D15: =A13&".2" -> 2.2 | E15: Печатное издание | K15: x
A16: 3 | D16: =A16 -> 3 | E16: Информация об инвестиционных программах регулируемой организации (п.21 Постановления Правительства Российской Федерации от 05 июля 2013 г. N 570 "О стандартах раскрытия информации теплоснабжающими, теплосетевыми организациями и органами регулирования")
D17: =A16&".1" -> 3.1 | E17: Сайт организации в сети Интернет | H17: x | I17: x | J17: x
E18: Добавить

Sheet Комментарии
D7: Комментарии
D8: =IF(org=0,"Не определено",org) -> ПАО "ТГК-14"
D10: № п/п | E10: Комментарий
D11: 1 | E11: 2
D12: 0
C13: О | D13: 1 | E13: Использование инвестиционных средств за отчетный год в тыс.руб. с НДС согласно ИПР 2016-2018
E14: Добавить

Sheet Проверка
B2: Результат проверки
B4: Ссылка1 | C4: Ссылка2 | D4: Причина | E4: Статус

Sheet AllSheetsInThisWorkbook (hidden)
A1: Расчетные листы | B1: Скрытые листы
A2: Инструкция | B2: AllSheetsInThisWorkbook
A3: Лог обновления | B3: TEHSHEET
A4: Титульный | B4: et_union_hor
A5: Список МО | B5: et_union_vert
A6: Показатели (факт) | B6: modInfo
A7: Показатели (2) | B7: modRegion
A8: Потр. характеристики | B8: modReestr
A9: Инвестиции | B9: modfrmSelectData
A10: Инвестиции исправления | B10: modfrmReestr
A11: Ссылки на публикации | B11: modUpdTemplMain
A12: Комментарии | B12: REESTR_ORG
A13: Проверка | B13: modClassifierValidate
B14: modProv
B15: modHyp
B16: modList00
B17: modList01
B18: modList02
B19: modList03
B20: modList04
B21: modList05
B22: modList06
B23: modList07
B24: modfrmDateChoose
B25: modComm
B26: modThisWorkbook
B27: REESTR_MO
B28: modfrmReestrMR
B29: modfrmCheckUpdates
B30: CopyList

Sheet TEHSHEET (hidden)
A1: REGION | B1: Список с видами деятельности | D1: year_list | E1: logical | F1: Месяц (MONTH) | G1: Квартал (QUARTER) | H1: Месяц (kind_of_publication) | I1: Режим налогообложения /kind_of_NDS/ | J1: Вид деятельности, на которую установлен тариф /kind_of_activity/ | K1: Вид услуги, на которую установлен тариф /kind_of_service_WARM/ | L1: Номер СЦХВ(СЦВО) /SKI_number/ | M1: Виды топлива /kind_of_fuels/ | O1: цель инвестиционной программы /kind_of_purchase_method/ | P1: Источники финансирования /source_of_funding/ | Q1: цель инвестиционной программы /objective_of_IPR/ | T1: Рабочие диапазоны
A2: Алтайский край | B2: kind_of_activity_01 | D2: 2013 | E2: да | F2: январь | G2: I квартал | H2: На официальном сайте организации | I2: общий | J2: kind_of_activity_01 | K2: Производство | L2: 1 | M2: газ природный по регулируемой цене | N2: тыс м3 | O2: торги/аукционы | P2: кредиты банков | Q2: автоматизация (с уменьшением штата) | R2: FALSE | T2: TRUE
A3: Амурская область | D3: 2014 | E3: нет | F3: февраль | G3: II квартал | H3: На сайте регулирующего органа | I3: общий с учетом освобождения от уплаты НДС | J3: Комбинированная выработка | K3: Передача | L3: 2 | M3: газ природный по нерегулируемой цене | N3: тыс м3 | O3: прямые договора без торгов | P3: кредиты иностранных банков | Q3: уменьшение удельных затрат (повышение КПД) | R3: FALSE
A4: Архангельская область | D4: 2015 | F4: март | G4: III квартал | I4: специальный (упрощенная система налогообложения, система налогообложения для сельскохозяйственных товаропроизводителей) | J4: Некомбинированная выработка | K4: Сбыт | L4: 3 | M4: газ сжиженный | N4: кг | O4: прочее | P4: заемные ср-ва др. организаций | Q4: уменьшение издержек на производство | R4: FALSE
A5: Астраханская область | D5: 2016 | E5: logical_two | F5: апрель | G5: IV квартал | J5: Нет производства т/э | L5: 4 | M5: газовый конденсат | N5: тонны | P5: федеральный бюджет | Q5: снижение аварийности | R5: FALSE
A6: Белгородская область | D6: 2017 | E6: есть | F6: май | I6: НДС для общего режима налогообложения /kind_of_NDS_tariff/ | J6: Смешанное производство | L6: 5 | M6: гшз | N6: тонны | P6: бюджет субъекта РФ | Q6: прочее | R6: TRUE
A7: Брянская область | E7: отсутствует | F7: июнь | I7: тариф указан с НДС для плательщиков НДС | L7: 6 | M7: мазут | N7: тонны | P7: бюджет муниципального образования
A8: Владимирская область | F8: июль | I8: тариф указан без НДС для плательщиков НДС | J8: kind_of_activity_02 | L8: 7 | M8: нефть | N8: тонны | P8: ср-ва внебюджетных фондов
A9: Волгоградская область | F9: август | J9: Комбинированная выработка | L9: 8 | M9: дизельное топливо | N9: тонны | P9: прибыль, направляемая на инвестиции
A10: Вологодская область | F10: сентябрь | I10: НДС для прочих режимов налогообложения /kind_of_NDS_tariff_etc/ | J10: Некомбинированная выработка | L10: 9 | M10: уголь бурый | N10: тонны | P10: амортизация
A11: Воронежская область | F11: октябрь | I11: тариф для организаций не являющихся плательщиками НДС | J11: Смешанное производство | L11: 10 | M11: уголь каменный | N11: тонны | P11: инвестиционная надбавка к тарифу
A12: г.Байконур | F12: ноябрь | J12: Передача | L12: 11 | M12: торф | N12: тонны | P12: плата за подключение
A13: г. Москва | F13: декабрь | J13: Сбыт | L13: 12 | M13: дрова | N13: м3 | P13: прочие средства
A14: г.Санкт-Петербург | L14: 13 | M14: опил | N14: м3
A15: Еврейская автономная область | J15: kind_of_activity_03 | L15: 14 | M15: отходы березовые | N15: м3
A16: Забайкальский край | J16: Комбинированная выработка | L16: 15 | M16: отходы осиновые | N16: м3
A17: Ивановская область | J17: Некомбинированная выработка | L17: 16 | M17: печное топливо | N17: тонны
A18: Иркутская область | J18: Смешанное производство | L18: 17 | M18: пилеты | N18: тонны
A19: Кабардино-Балкарская республика | J19: Передача | L19: 18 | M19: смола | N19: тонны
A20: Калининградская область | J20: Сбыт | L20: 19 | M20: щепа | N20: м3
A21: Калужская область | J21: Производство (некомбинированная выработка)+сбыт | L21: 20 | M21: горючий сланец | N21: тонны
A22: Камчатский край | J22: Передача+сбыт | M22: керосин | N22: тонны
A23: Карачаево-Черкесская республика | J23: Производство (комбинированная выработка)+сбыт | M23: кислородно-водородная смесь | N23: тыс м3
A24: Кемеровская область | J24: Производство (некомбинированная выработка)+передача | M24: электроэнергия (НН) | N24: тыс кВт.ч
A25: Кировская область | J25: Производство (комбинированная выработка)+передача | M25: электроэнергия (СН1) | N25: тыс кВт.ч
A26: Костромская область | J26: Производство (комбинированная выработка)+передача+сбыт | M26: электроэнергия (СН2) | N26: тыс кВт.ч
A27: Краснодарский край | J27: Производство (некомбинированная выработка)+передача+сбыт | M27: электроэнергия (ВН) | N27: тыс кВт.ч
A28: Красноярский край | J28: Смешанное производство+сбыт | M28: мощность | N28: тыс кВт
A29: Курганская область | J29: Смешанное производство+передача | M29: прочее
A30: Курская область | J30: Смешанное производство+передача+сбыт
A31: Ленинградская область
A32: Липецкая область
A33: Магаданская область
A34: Московская область
A35: Мурманская область
A36: Ненецкий автономный округ
A37: Нижегородская область
A38: Новгородская область
A39: Новосибирская область
A40: Омская область | B40: kind_of_activity_02
A41: Оренбургская область
A42: Орловская область
A43: Пензенская область
A44: Пермский край
A45: Приморский край
A46: Псковская область
A47: Республика Адыгея
A48: Республика Алтай
A49: Республика Башкортостан
A50: Республика Бурятия
A51: Республика Дагестан
A52: Республика Ингушетия
A53: Республика Калмыкия
A54: Республика Карелия
A55: Республика Коми
A56: Республика Марий Эл
A57: Республика Мордовия
A58: Республика Саха (Якутия)
A59: Республика Северная Осетия-Алания
A60: Республика Татарстан
A61: Республика Тыва
A62: Республика Хакасия
A63: Ростовская область
A64: Рязанская область
A65: Самарская область
A66: Саратовская область
A67: Сахалинская область
A68: Свердловская область
A69: Смоленская область
A70: Ставропольский край
A71: Тамбовская область
A72: Тверская область
A73: Томская область
A74: Тульская область
A75: Тюменская область
A76: Удмуртская республика
A77: Ульяновская область | B77: kind_of_activity_02
A78: Хабаровский край
A79: Ханты-Мансийский автономный округ | B79: kind_of_activity_02
A80: Челябинская область
A81: Чеченская республика
A82: Чувашская республика
A83: Чукотский автономный округ
A84: Ямало-Ненецкий автономный округ
A85: Ярославская область

Sheet et_union_hor (hidden)
A2: et_List01 | B2: et_List01_1
F4: 1
G5: Добавить МО
A8: et_Comm
A13: et_List03
A16: 4 | D16: =A16 -> 4
D17: =A16&".1" -> 4.1 | E17: Сайт организации в сети Интернет | H17: x | I17: x | J17: x
D18: =A16&".2" -> 4.2 | E18: Печатное издание | K18: x
A22: edit_List03_ipr_pub
A24: 3 | D24: =A24 -> 3 | E24: Информация об инвестиционных программах регулируемой организации (п.21 Постановления Правительства Российской Федерации от 05 июля 2013 г. N 570 "О стандартах раскрытия информации теплоснабжающими, теплосетевыми организациями и органами регулирования")
D25: =A24&".1" -> 3.1 | E25: Сайт организации в сети Интернет | H25: x | I25: x | J25: x
A28: et_List02_1
F30: тыс руб
A32: et_List02_2
D34: =A34 -> 0 | F34: x | G34: =G35*G36+G37 -> 0.00 | H34: p
D35: =A34&".1" -> .1 | E35: Объем
D36: =A34&".2" -> .2 | E36: Стоимость за единицу объема | F36: тыс руб
D37: =A34&".3" -> .3 | E37: Стоимость доставки | F37: тыс руб
D38: =A34&".4" -> .4 | E38: Способ приобретения | F38: x
A40: et_List02_3
F42: Гкал/ч
A44: et_List02_4
F46: кг усл. топл/Гкал
A48: et_List02_5
F50: тыс руб
A53: et_List04_1 | B53: et_List04_2 | C53: et_List04_3
D55: 1 | H55: Итого по поставщику | O55: =SUM(O56:O58) -> 0.00 | P55: =nerr(O55/List02_costs_OPS)*100 -> 0.00
G56: 1 | K56: 1
L57: Добавить товар/услугу
H58: Добавить способ
A61: et_List07_1

Sheet et_union_vert (hidden)

Sheet modInfo (hidden)
B1: Титульный
B2: Для выбора того или иного источника публикации выполните двойной щелчок по синей ячейке напротив соответствующего источника. ВНИМАНИЕ! Если Вы снимаете галочку с пункта, то будут скрыты и очищены соответствующие строки на листе "Ссылки на публикации"! Опубликование перечисленных в шаблоне показателей на сайте организации в сети Интернет и в печатных изданиях не обязательно, если данный шаблон предоставлен по системе ЕИАС (региональный сегмент).
B3: Обязательное опубликование на официальном сайте органа исполнительной власти субъекта Российской Федерации в области государственного регулирования цен (тарифов), и (или) на официальном сайте органа местного самоуправления поселения или городского округа в случае их наделения в соответствии с законом субъекта Российской Федерации полномочиями по государственному регулированию цен (тарифов) предусмотрено пунктом 3 (а) постановления Правительства N 570 от 05.07.2013
B4: Задайте период регулирования, выбрав даты начала и окончания очередного периода регулирования из календаря (иконка справа от указанной ячейки), либо введите дату непосредственно в ячейку в формате - 'ДД.ММ.ГГГГ'
B5: Шаблон заполняется раздельно по каждому виду тарифа
B6: В зависимости от указанного вида деятельности будут доступны для заполнения поля 'Производство', 'Передача' и 'Сбыт'
B7: Ссылки на публикации
B8: Вводите адрес сайта, не нарушая цвет ячейки /если копируете гиперссылку из браузера, то выполните двойной щелчок по ячейке и только после этого можете вставить скопированный элемент/
B9: Материалы (документы) необходимо загружать с помощью "ЕИАС Мониторинг". Ссылка на инструкцию по загрузке материалов (документов) расположена на листе 'Инструкция' в п.'Методология заполнения'. Ввводите ссылку, не нарушая цвет ячейки /если копируете гиперссылку из браузера, то выполните двойной щелчок по ячейке и только после этого можете вставить скопированный элемент/.
B10: Если для какого-либо пункта графы 'Наименование источника (сайта или печатного издания)' информация не раскрывалась, то в соответствующем поле укажите - 'не раскрывалась'
B11: Список МО
B12: В случае, если тариф не дифференцируется по системам теплоснабжения, перечислите все муниципальные районы, в которых организация осуществляет услуги по передаче тепловой энергии
B13: В случае, если тариф не дифференцируется по системам теплоснабжения, перечислите все муниципальные образования, в которых организация осуществляет услуги по передаче тепловой энергии
B14: Признак дифференциации тарифа
B15: В случае, если тариф не дифференцируется по системам теплоснабжения, укажите '1'. Введите значение от 1 до 100, чтобы указать очередной условный порядковый номер системы теплоснабжения
B16: Потр. Характеристики
B17: Документы необходимо загружать с помощью "ЕИАС Мониторинг". Ссылка на инструкцию по загрузке документов расположена на листе 'Инструкция' в п.'Методология заполнения'. Ввводите ссылку, не нарушая цвет ячейки /если копируете гиперссылку из браузера, то выполните двойной щелчок по ячейке и только после этого можете вставить скопированный элемент/.

Sheet modRegion (hidden)

Sheet modReestr (hidden)

Sheet modfrmSelectData (hidden)

Sheet modfrmReestr (hidden)

Sheet modUpdTemplMain (hidden)

Sheet REESTR_ORG (hidden)
A1: № | B1: NSRF | C1: MR_NAME | D1: OKTMO_MR_NAME | E1: MO_NAME | F1: OKTMO_NAME | G1: RST_ORG_ID | H1: ORG_NAME | I1: INN_NAME | J1: KPP_NAME | K1: VDET_NAME
A2: 1 | B2: Забайкальский край | C2: Агинский муниципальный район | D2: 76602000 | E2: Амитхаша | F2: 76602402 | G2: 26499792 | H2: МП "Амитхаша" | I2: 8001009924 | J2: 800101001 | K2: производство (некомбинированная выработка)+передача+сбыт | L2: WARM
A3: 2 | B3: Забайкальский край | C3: Агинский муниципальный район | D3: 76602000 | E3: Амитхаша | F3: 76602402 | G3: 27479768 | H3: ООО "Луч" | I3: 8001016569 | J3: 800101001 | K3: производство (некомбинированная выработка)+передача+сбыт | L3: WARM
A4: 3 | B4: Забайкальский край | C4: Агинский муниципальный район | D4: 76602000 | E4: Будулан | F4: 76602404 | G4: 28422291 | H4: ООО "Исток" | I4: 8001017594 | J4: 800101001 | K4: производство (некомбинированная выработка)+передача+сбыт | L4: WARM
A5: 4 | B5: Забайкальский край | C5: Агинский муниципальный район | D5: 76602000 | E5: Гунэй | F5: 76602408 | G5: 26320237 | H5: Администрация МО сп. "Гунэй" | I5: 8001003030 | J5: 800101001 | K5: производство (некомбинированная выработка)+передача+сбыт | L5: WARM
A6: 5 | B6: Забайкальский край | C6: Агинский муниципальный район | D6: 76602000 | E6: Гунэй | F6: 76602408 | G6: 26499798 | H6: МП "Гунэй" | I6: 8001014233 | J6: 800101001 | K6: производство (некомбинированная выработка)+передача+сбыт | L6: WARM
A7: 6 | B7: Забайкальский край | C7: Агинский муниципальный район | D7: 76602000 | E7: Гунэй | F7: 76602408 | G7: 28422291 | H7: ООО "Исток" | I7: 8001017594 | J7: 800101001 | K7: производство (некомбинированная выработка)+передача+сбыт | L7: WARM
A8: 7 | B8: Забайкальский край | C8: Агинский муниципальный район | D8: 76602000 | E8: Кункур | F8: 76602412 | G8: 26499800 | H8: МП "Онон" | I8: 8001015734 | J8: 800101001 | K8: производство (некомбинированная выработка)+передача+сбыт | L8: WARM
A9: 8 | B9: Забайкальский край | C9: Агинский муниципальный район | D9: 76602000 | E9: Кункур | F9: 76602412 | G9: 28422291 | H9: ООО "Исток" | I9: 8001017594 | J9: 800101001 | K9: производство (некомбинированная выработка)+передача+сбыт | L9: WARM
A10: 9 | B10: Забайкальский край | C10: Агинский муниципальный район | D10: 76602000 | E10: Новоорловск | F10: 76602153 | G10: 26775504 | H10: Агинское РАЙПО | I10: 8001001001 | J10: 800101001 | K10: производство (некомбинированная выработка)+передача+сбыт | L10: WARM
A11: 10 | B11: Забайкальский край | C11: Агинский муниципальный район | D11: 76602000 | E11: Новоорловск | F11: 76602153 | G11: 26499171 | H11: МП УК "Жилкомхоз" | I11: 8001002439 | J11: 800101001 | K11: производство (некомбинированная выработка)+передача+сбыт | L11: WARM
A12: 11 | B12: Забайкальский край | C12: Агинский муниципальный район | D12: 76602000 | E12: Новоорловск | F12: 76602153 | G12: 28176584 | H12: ООО "Гарант" | I12: 8001017604 | J12: 800101001 | K12: производство (некомбинированная выработка)+передача+сбыт | L12: WARM
A13: 12 | B13: Забайкальский край | C13: Агинский муниципальный район | D13: 76602000 | E13: Орловский | F13: 76602154 | G13: 27479772 | H13: МП "Уют" | I13: 8001017160 | J13: 800101001 | K13: производство (некомбинированная выработка)+передача | L13: WARM
A14: 13 | B14: Забайкальский край | C14: Агинский муниципальный район | D14: 76602000 | E14: Орловский | F14: 76602154 | G14: 26499790 | H14: Муниципальное унитарное предприятие «Коммунальник» | I14: 8001005253 | J14: 800101001 | K14: производство (некомбинированная выработка)+передача+сбыт | L14: WARM
A15: 14 | B15: Забайкальский край | C15: Агинский муниципальный район | D15: 76602000 | E15: Орловский | F15: 76602154 | G15: 26644431 | H15: ООО "Тепловодоканал" | I15: 8001016706 | J15: 800101001 | K15: производство (некомбинированная выработка)+передача+сбыт | L15: WARM
A16: 15 | B16: Забайкальский край | C16: Агинский муниципальный район | D16: 76602000 | E16: Орловский | F16: 76602154 | G16: 27479817 | H16: ООО УК "Теплый дом" | I16: 8001016537 | J16: 800101001 | K16: производство (некомбинированная выработка)+передача+сбыт | L16: WARM
A17: 16 | B17: Забайкальский край | C17: Агинский муниципальный район | D17: 76602000 | E17: Сахюрта | F17: 76602416 | G17: 28422291 | H17: ООО "Исток" | I17: 8001017594 | J17: 800101001 | K17: производство (некомбинированная выработка)+передача+сбыт | L17: WARM
A18: 17 | B18: Забайкальский край | C18: Агинский муниципальный район | D18: 76602000 | E18: Судунтуй | F18: 76602420 | G18: 28422291 | H18: ООО "Исток" | I18: 8001017594 | J18: 800101001 | K18: производство (некомбинированная выработка)+передача+сбыт | L18: WARM
A19: 18 | B19: Забайкальский край | C19: Агинский муниципальный район | D19: 76602000 | E19: Урда-Ага | F19: 76602424 | G19: 26320241 | H19: Администрация муниципального образования сельское поселение "Урда-Ага" | I19: 8001002421 | J19: 800101001 | K19: производство (некомбинированная выработка)+передача+сбыт | L19: WARM
A20: 19 | B20: Забайкальский край | C20: Агинский муниципальный район | D20: 76602000 | E20: Урда-Ага | F20: 76602424 | G20: 26499806 | H20: МП "Урдо-Ага" | I20: 8001011433 | J20: 800101001 | K20: производство (некомбинированная выработка)+передача+сбыт | L20: WARM
A21: 20 | B21: Забайкальский край | C21: Агинский муниципальный район | D21: 76602000 | E21: Хойто-Ага | F21: 76602428 | G21: 28422291 | H21: ООО "Исток" | I21: 8001017594 | J21: 800101001 | K21: производство (некомбинированная выработка)+передача+сбыт | L21: WARM
A22: 21 | B22: Забайкальский край | C22: Агинский муниципальный район | D22: 76602000 | E22: Цокто-Хангил | F22: 76602432 | G22: 28875244 | H22: ИП Базаров В.Б. | I22: 800100537182 | J22: отсутствует | K22: производство (некомбинированная выработка)+передача+сбыт | L22: WARM
A23: 22 | B23: Забайкальский край | C23: Агинский муниципальный район | D23: 76602000 | E23: Цокто-Хангил | F23: 76602432 | G23: 28872754 | H23: МП "Центр Досуга" | I23: 8001016738 | J23: 800101001 | K23: Передача+Сбыт | L23: WARM
A24: 23 | B24: Забайкальский край | C24: Агинский муниципальный район | D24: 76602000 | E24: Цокто-Хангил | F24: 76602432 | G24: 28872754 | H24: МП "Центр Досуга" | I24: 8001016738 | J24: 800101001 | K24: производство комбинированная выработка | L24: WARM
A25: 24 | B25: Забайкальский край | C25: Агинский муниципальный район | D25: 76602000 | E25: Цокто-Хангил | F25: 76602432 | G25: 26499810 | H25: МП "Цокто-Хангил" | I25: 8001015389 | J25: 800101001 | K25: производство (некомбинированная выработка)+передача+сбыт | L25: WARM
A26: 25 | B26: Забайкальский край | C26: Агинский муниципальный район | D26: 76602000 | E26: Цокто-Хангил | F26: 76602432 | G26: 28422291 | H26: ООО "Исток" | I26: 8001017594 | J26: 800101001 | K26: производство (некомбинированная выработка)+передача+сбыт | L26: WARM
A27: 26 | B27: Забайкальский край | C27: Агинский муниципальный район | D27: 76602000 | E27: Челутай | F27: 76602436 | G27: 26499812 | H27: МП "Челутай" | I27: 8001016135 | J27: 800101001 | K27: производство (некомбинированная выработка)+передача+сбыт | L27: WARM
A28: 27 | B28: Забайкальский край | C28: Агинский муниципальный район | D28: 76602000 | E28: Челутай | F28: 76602436 | G28: 28422291 | H28: ООО "Исток" | I28: 8001017594 | J28: 800101001 | K28: производство (некомбинированная выработка)+передача+сбыт | L28: WARM
A29: 28 | B29: Забайкальский край | C29: Агинский муниципальный район | D29: 76602000 | E29: Южный Аргалей | F29: 76602440 | G29: 26499814 | H29: МП "Аргали" | I29: 8001009956 | J29: 800101001 | K29: производство (некомбинированная выработка)+передача+сбыт | L29: WARM
A30: 29 | B30: Забайкальский край | C30: Агинский муниципальный район | D30: 76602000 | E30: Южный Аргалей | F30: 76602440 | G30: 28422291 | H30: ООО "Исток" | I30: 8001017594 | J30: 800101001 | K30: производство (некомбинированная выработка)+передача+сбыт | L30: WARM
A31: 30 | B31: Забайкальский край | C31: Акшинский муниципальный район | D31: 76603000 | E31: Акшинское | F31: 76603411 | G31: 28816976 | H31: ООО "Авангард" | I31: 7536142585 | J31: 753601001 | K31: Передача+Сбыт | L31: WARM
A32: 31 | B32: Забайкальский край | C32: Акшинский муниципальный район | D32: 76603000 | E32: Акшинское | F32: 76603411 | G32: 28816976 | H32: ООО "Авангард" | I32: 7536142585 | J32: 753601001 | K32: производство (некомбинированная выработка)+передача+сбыт | L32: WARM
A33: 32 | B33: Забайкальский край | C33: Акшинский муниципальный район | D33: 76603000 | E33: Акшинское | F33: 76603411 | G33: 26375484 | H33: ООО "Коммунальник" | I33: 7501002876 | J33: 750101001 | K33: производство (некомбинированная выработка)+передача+сбыт | L33: WARM
A34: 33 | B34: Забайкальский край | C34: Акшинский муниципальный район | D34: 76603000 | E34: Акшинское | F34: 76603411 | G34: 27880529 | H34: ООО УК "ИВА" | I34: 7501003171 | J34: 750101001 | K34: производство (некомбинированная выработка)+передача+сбыт | L34: WARM
A35: 34 | B35: Забайкальский край | C35: Александрово-Заводский муниципальный район | D35: 76604000 | E35: Александрово-Заводское | F35: 76604412 | G35: 28010289 | H35: МУП ЖКХ сельского поселения "Александрово-Заводское" | I35: 7502002004 | J35: 750201001 | K35: производство (некомбинированная выработка)+передача+сбыт | L35: WARM
A36: 35 | B36: Забайкальский край | C36: Александрово-Заводский муниципальный район | D36: 76604000 | E36: Александрово-Заводское | F36: 76604412 | G36: 26531279 | H36: ООО "Александро-Заводское ЖКХ" | I36: 7502002477 | J36: 750201001 | K36: производство (некомбинированная выработка)+передача+сбыт | L36: WARM
A37: 36 | B37: Забайкальский край | C37: Балейский муниципальный район | D37: 76606000 | E37: Городское поселение "Город Балей" | F37: 76606101 | G37: 26498129 | H37: МУП "Коммунальник" | I37: 7528004736 | J37: 752801001 | K37: производство (некомбинированная выработка)+передача+сбыт | L37: WARM
A38: 37 | B38: Забайкальский край | C38: Балейский муниципальный район | D38: 76606000 | E38: Городское поселение "Город Балей" | F38: 76606101 | G38: 26498131 | H38: МУП "Центральные котельные" | I38: 7528004743 | J38: 752801001 | K38: производство (некомбинированная выработка)+передача+сбыт | L38: WARM
A39: 38 | B39: Забайкальский край | C39: Балейский муниципальный район | D39: 76606000 | E39: Городское поселение "Город Балей" | F39: 76606101 | G39: 26498127 | H39: ООО "Балейский" | I39: 7528005218 | J39: 752801001 | K39: производство (некомбинированная выработка)+передача+сбыт | L39: WARM
A40: 39 | B40: Забайкальский край | C40: Балейский муниципальный район | D40: 76606000 | E40: Городское поселение "Город Балей" | F40: 76606101 | G40: 26498141 | H40: ООО "Коммунальник" | I40: 7536089691 | J40: 753601001 | K40: Передача+Сбыт | L40: WARM
A41: 40 | B41: Забайкальский край | C41: Балейский муниципальный район | D41: 76606000 | E41: Городское поселение "Город Балей" | F41: 76606101 | G41: 26498141 | H41: ООО "Коммунальник" | I41: 7536089691 | J41: 753601001 | K41: производство (некомбинированная выработка)+передача+сбыт | L41: WARM
A42: 41 | B42: Забайкальский край | C42: Балейский муниципальный район | D42: 76606000 | E42: Городское поселение "Город Балей" | F42: 76606101 | G42: 26498141 | H42: ООО "Коммунальник" | I42: 7536089691 | J42: 753601001 | K42: производство комбинированная выработка | L42: WARM
A43: 42 | B43: Забайкальский край | C43: Балейский муниципальный район | D43: 76606000 | E43: Городское поселение "Город Балей" | F43: 76606101 | G43: 27479835 | H43: ООО "Очаг" | I43: 7528005634 | J43: 752801001 | K43: производство (некомбинированная выработка)+передача+сбыт | L43: WARM
A44: 43 | B44: Забайкальский край | C44: Балейский муниципальный район | D44: 76606000 | E44: Городское поселение "Город Балей" | F44: 76606101 | G44: 27480024 | H44: ООО "Сибцветметэнерго" | I44: 7528004630 | J44: 752801001 | K44: производство (некомбинированная выработка)+передача+сбыт | L44: WARM
A45: 44 | B45: Забайкальский край | C45: Балейский муниципальный район | D45: 76606000 | E45: Городское поселение "Город Балей" | F45: 76606101 | G45: 28460539 | H45: ООО "Тепловик" | I45: 7528005923 | J45: 752801001 | K45: производство (некомбинированная выработка)+сбыт | L45: WARM
A46: 45 | B46: Забайкальский край | C46: Балейский муниципальный район | D46: 76606000 | E46: Городское поселение "Город Балей" | F46: 76606101 | G46: 27479831 | H46: ООО "Теплострой" | I46: 7528005641 | J46: 752801001 | K46: производство (некомбинированная выработка)+передача+сбыт | L46: WARM
A47: 46 | B47: Забайкальский край | C47: Балейский муниципальный район | D47: 76606000 | E47: Городское поселение "Город Балей" | F47: 76606101 | G47: 28011120 | H47: ООО "Теплоэнерго" | I47: 7528005761 | J47: 752801001 | K47: производство (некомбинированная выработка)+передача+сбыт | L47: WARM
A48: 47 | B48: Забайкальский край | C48: Балейский муниципальный район | D48: 76606000 | E48: Казаковское | F48: 76606405 | G48: 26498133 | H48: ИП "Толстокулаков" | I48: 752800656759 | J48: 752801001 | K48: производство (некомбинированная выработка)+передача+сбыт | L48: WARM
A49: 48 | B49: Забайкальский край | C49: Балейский муниципальный район | D49: 76606000 | E49: Казаковское | F49: 76606405 | G49: 26375569 | H49: ООО "Исток" | I49: 7528005183 | J49: 752801001 | K49: производство (некомбинированная выработка)+передача+сбыт | L49: WARM
A50: 49 | B50: Забайкальский край | C50: Балейский муниципальный район | D50: 76606000 | E50: Казаковское | F50: 76606405 | G50: 26498141 | H50: ООО "Коммунальник" | I50: 7536089691 | J50: 753601001 | K50: производство (некомбинированная выработка) | L50: WARM
A51: 50 | B51: Забайкальский край | C51: Балейский муниципальный район | D51: 76606000 | E51: Казаковское | F51: 76606405 | G51: 27480024 | H51: ООО "Сибцветметэнерго" | I51: 7528004630 | J51: 752801001 | K51: производство (некомбинированная выработка)+передача+сбыт | L51: WARM
A52: 51 | B52: Забайкальский край | C52: Балейский муниципальный район | D52: 76606000 | E52: Матусовское | F52: 76606425 | G52: 27479869 | H52: Матусовское СОШ | I52: 7503000546 | J52: 752801001 | K52: производство (некомбинированная выработка)+передача+сбыт | L52: WARM
A53: 52 | B53: Забайкальский край | C53: Балейский муниципальный район | D53: 76606000 | E53: Матусовское | F53: 76606425 | G53: 26498141 | H53: ООО "Коммунальник" | I53: 7536089691 | J53: 753601001 | K53: производство (некомбинированная выработка) | L53: WARM
A54: 53 | B54: Забайкальский край | C54: Балейский муниципальный район | D54: 76606000 | E54: Матусовское | F54: 76606425 | G54: 27480024 | H54: ООО "Сибцветметэнерго" | I54: 7528004630 | J54: 752801001 | K54: производство (некомбинированная выработка)+передача+сбыт | L54: WARM
A55: 54 | B55: Забайкальский край | C55: Балейский муниципальный район | D55: 76606000 | E55: Нижнегирюнинское | F55: 76606430 | G55: 26375566 | H55: МОУ Жетковская ООШ | I55: 7528002263 | J55: 752801001 | K55: производство (некомбинированная выработка)+передача+сбыт | L55: WARM
A56: 55 | B56: Забайкальский край | C56: Балейский муниципальный район | D56: 76606000 | E56: Нижнеильдиканское | F56: 76606415 | G56: 26375570 | H56: ООО "Каскад" | I56: 7528005190 | J56: 752801001 | K56: производство (некомбинированная выработка) | L56: WARM
A57: 56 | B57: Забайкальский край | C57: Балейский муниципальный район | D57: 76606000 | E57: Нижнекокуйское | F57: 76606435 | G57: 26498135 | H57: ИП Подойницын В.В. | I57: 752801874333 | J57: 752801001 | K57: производство (некомбинированная выработка)+передача+сбыт | L57: WARM
A58: 57 | B58: Забайкальский край | C58: Балейский муниципальный район | D58: 76606000 | E58: Нижнекокуйское | F58: 76606435 | G58: 26498141 | H58: ООО "Коммунальник" | I58: 7536089691 | J58: 753601001 | K58: производство (некомбинированная выработка) | L58: WARM
A59: 58 | B59: Забайкальский край | C59: Балейский муниципальный район | D59: 76606000 | E59: Нижнекокуйское | F59: 76606435 | G59: 27480024 | H59: ООО "Сибцветметэнерго" | I59: 7528004630 | J59: 752801001 | K59: производство (некомбинированная выработка)+передача+сбыт | L59: WARM
A60: 59 | B60: Забайкальский край | C60: Балейский муниципальный район | D60: 76606000 | E60: Подойницинское | F60: 76606440 | G60: 26498137 | H60: МОУ Подойницынская СОШ | I60: 7503000553 | J60: 750301001 | K60: производство (некомбинированная выработка)+передача+сбыт | L60: WARM
A61: 60 | B61: Забайкальский край | C61: Балейский муниципальный район | D61: 76606000 | E61: Подойницинское | F61: 76606440 | G61: 26498141 | H61: ООО "Коммунальник" | I61: 7536089691 | J61: 753601001 | K61: производство (некомбинированная выработка) | L61: WARM
A62: 61 | B62: Забайкальский край | C62: Балейский муниципальный район | D62: 76606000 | E62: Подойницинское | F62: 76606440 | G62: 27480024 | H62: ООО "Сибцветметэнерго" | I62: 7528004630 | J62: 752801001 | K62: производство (некомбинированная выработка)+передача+сбыт | L62: WARM
A63: 62 | B63: Забайкальский край | C63: Балейский муниципальный район | D63: 76606000 | E63: Ундино-Посельское | F63: 76606445 | G63: 26823629 | H63: МОУ Ундино-Посельская СОШ | I63: 7503000539 | J63: 752801001 | K63: производство (некомбинированная выработка)+передача+сбыт | L63: WARM
A64: 63 | B64: Забайкальский край | C64: Балейский муниципальный район | D64: 76606000 | E64: Ундинское | F64: 76606450 | G64: 26375569 | H64: ООО "Исток" | I64: 7528005183 | J64: 752801001 | K64: производство (некомбинированная выработка)+передача+сбыт | L64: WARM
A65: 64 | B65: Забайкальский край | C65: Борзинский муниципальный район | D65: 76609000 | E65: Борзинское | F65: 76609101 | G65: 30335229 | H65: АО "ГУ ЖКХ" | I65: 5116000922 | J65: 770401001 | K65: производство (некомбинированная выработка)+передача+сбыт | L65: WARM
A66: 65 | B66: Забайкальский край | C66: Борзинский муниципальный район | D66: 76609000 | E66: Борзинское | F66: 76609101 | G66: 30431003 | H66: АО "ГУ ЖКХ" | I66: 5116000922 | J66: 753645001 | K66: производство (некомбинированная выработка)+передача+сбыт | L66: WARM
A67: 66 | B67: Забайкальский край | C67: Борзинский муниципальный район | D67: 76609000 | E67: Борзинское | F67: 76609101 | G67: 26375571 | H67: Борзинская КЭЧ района | I67: 7529004351 | J67: 752901001 | K67: производство (некомбинированная выработка)+передача+сбыт | L67: WARM
A68: 67 | B68: Забайкальский край | C68: Борзинский муниципальный район | D68: 76609000 | E68: Борзинское | F68: 76609101 | G68: 28053356 | H68: ГАУСО "Хадабулакский психоневрологический дом-интернат" | I68: 7515002548 | J68: 751501001 | K68: производство (некомбинированная выработка)+передача+сбыт | L68: WARM
A69: 68 | B69: Забайкальский край | C69: Борзинский муниципальный район | D69: 76609000 | E69: Борзинское | F69: 76609101 | G69: 26498139 | H69: Забайкальская дирекция по тепловодоснабжению - структурное подразделение Центральной дирекции по тепловодоснабжению филиала ОАО "РЖД" | I69: 7708503727 | J69: 753602001 | K69: производство (некомбинированная выработка)+передача+сбыт | L69: WARM
A70: 69 | B70: Забайкальский край | C70: Борзинский муниципальный район | D70: 76609000 | E70: Борзинское | F70: 76609101 | G70: 26823638 | H70: Комитет образования и молодежной политики администрациии муниципального района "Борзинский район" | I70: 7529001142 | J70: 752901001 | K70: производство (некомбинированная выработка)+передача+сбыт | L70: WARM
A71: 70 | B71: Забайкальский край | C71: Борзинский муниципальный район | D71: 76609000 | E71: Борзинское | F71: 76609101 | G71: 26498143 | H71: ОАО «Межрегиональная распределительная сетевая компания Сибири»- филиал "Читаэнерго" | I71: 2460069527 | J71: 753643001 | K71: производство (некомбинированная выработка)+передача+сбыт | L71: WARM
A72: 71 | B72: Забайкальский край | C72: Борзинский муниципальный район | D72: 76609000 | E72: Борзинское | F72: 76609101 | G72: 26823655 | H72: ООО "Агропромснаб" | I72: 7529002587 | J72: 752901001 | K72: производство (некомбинированная выработка)+передача+сбыт | L72: WARM
A73: 72 | B73: Забайкальский край | C73: Борзинский муниципальный район | D73: 76609000 | E73: Борзинское | F73: 76609101 | G73: 26498147 | H73: ООО "Борзинское пиво" | I73: 7529009631 | J73: 752901001 | K73: производство (некомбинированная выработка)+передача+сбыт | L73: WARM
A74: 73 | B74: Забайкальский край | C74: Борзинский муниципальный район | D74: 76609000 | E74: Борзинское | F74: 76609101 | G74: 26498141 | H74: ООО "Коммунальник" | I74: 7536089691 | J74: 753601001 | K74: Передача+Сбыт | L74: WARM
A75: 74 | B75: Забайкальский край | C75: Борзинский муниципальный район | D75: 76609000 | E75: Борзинское | F75: 76609101 | G75: 26498141 | H75: ООО "Коммунальник" | I75: 7536089691 | J75: 753601001 | K75: производство (некомбинированная выработка)+передача+сбыт | L75: WARM
A76: 75 | B76: Забайкальский край | C76: Борзинский муниципальный район | D76: 76609000 | E76: Борзинское | F76: 76609101 | G76: 26498141 | H76: ООО "Коммунальник" | I76: 7536089691 | J76: 753601001 | K76: производство комбинированная выработка | L76: WARM
A77: 76 | B77: Забайкальский край | C77: Борзинский муниципальный район | D77: 76609000 | E77: Борзинское | F77: 76609101 | G77: 28048331 | H77: ООО "Комплект" | I77: 7529011768 | J77: 752901001 | K77: производство (некомбинированная выработка)+передача+сбыт | L77: WARM
A78: 77 | B78: Забайкальский край | C78: Борзинский муниципальный район | D78: 76609000 | E78: Борзинское | F78: 76609101 | G78: 26834786 | H78: Филиал ОАО "Ремонтно-эксплуатационное управление "Забайкальский" | I78: 7714783092 | J78: 753643001 | K78: производство (некомбинированная выработка)+передача+сбыт | L78: WARM
A79: 78 | B79: Забайкальский край | C79: Борзинский муниципальный район | D79: 76609000 | E79: Соловьёвское | F79: 76609464 | G79: 26498139 | H79: Забайкальская дирекция по тепловодоснабжению - структурное подразделение Центральной дирекции по тепловодоснабжению филиала ОАО "РЖД" | I79: 7708503727 | J79: 753602001 | K79: производство (некомбинированная выработка)+передача+сбыт | L79: WARM
A80: 79 | B80: Забайкальский край | C80: Борзинский муниципальный район | D80: 76609000 | E80: Усть-Озёрское | F80: 76609468 | G80: 26498151 | H80: Администрация с.п. "Усть-Озерское" | I80: 7529010130 | J80: 752901001 | K80: производство (некомбинированная выработка)+передача+сбыт | L80: WARM
A81: 80 | B81: Забайкальский край | C81: Борзинский муниципальный район | D81: 76609000 | E81: Цаган-Олуйское | F81: 76609476 | G81: 26498153 | H81: Производственный сельскохозяйственный кооператив "Забайкалец" | I81: 7529009945 | J81: 752901001 | K81: производство (некомбинированная выработка)+передача+сбыт | L81: WARM
A82: 81 | B82: Забайкальский край | C82: Борзинский муниципальный район | D82: 76609000 | E82: Шерловогорское | F82: 76609154 | G82: 26498149 | H82: ПАО "ТГК-14" | I82: 7534018889 | J82: 753401001 | K82: Передача+Сбыт | L82: WARM
A83: 82 | B83: Забайкальский край | C83: Борзинский муниципальный район | D83: 76609000 | E83: Шерловогорское | F83: 76609154 | G83: 26498149 | H83: ПАО "ТГК-14" | I83: 7534018889 | J83: 753401001 | K83: производство (некомбинированная выработка)+передача+сбыт | L83: WARM
A84: 83 | B84: Забайкальский край | C84: Борзинский муниципальный район | D84: 76609000 | E84: Шерловогорское | F84: 76609154 | G84: 26498149 | H84: ПАО "ТГК-14" | I84: 7534018889 | J84: 753401001 | K84: производство комбинированная выработка | L84: WARM
A85: 84 | B85: Забайкальский край | C85: Борзинский муниципальный район | D85: 76609000 | E85: Шерловогорское | F85: 76609154 | G85: 26834786 | H85: Филиал ОАО "Ремонтно-эксплуатационное управление "Забайкальский" | I85: 7714783092 | J85: 753643001 | K85: производство (некомбинированная выработка)+передача+сбыт | L85: WARM
A86: 85 | B86: Забайкальский край | C86: Газимуро-Заводский муниципальный район | D86: 76610000 | E86: Газимуро-Заводское | F86: 76610409 | G86: 26375486 | H86: Администрация муниципального района "Газимуро-Заводское" | I86: 7504000549 | J86: 750401001 | K86: производство (некомбинированная выработка)+передача+сбыт | L86: WARM
A87: 86 | B87: Забайкальский край | C87: Газимуро-Заводский муниципальный район | D87: 76610000 | E87: Газимуро-Заводское | F87: 76610409 | G87: 26649631 | H87: МУ здравоохранения Центральная районная больница | I87: 7504000718 | J87: 750401001 | K87: производство (некомбинированная выработка)+передача+сбыт | L87: WARM
A88: 87 | B88: Забайкальский край | C88: Газимуро-Заводский муниципальный район | D88: 76610000 | E88: Газимуро-Заводское | F88: 76610409 | G88: 30372462 | H88: ООО "Авангард плюс" | I88: 7524018664 | J88: 752401001 | K88: производство (некомбинированная выработка)+передача+сбыт | L88: WARM
A89: 88 | B89: Забайкальский край | C89: Газимуро-Заводский муниципальный район | D89: 76610000 | E89: Солонеченское | F89: 76610420 | G89: 28502142 | H89: Администрация сельского поселения "Солонеченское" | I89: 7504002024 | J89: 750401001 | K89: Передача+Сбыт | L89: WARM
A90: 89 | B90: Забайкальский край | C90: Газимуро-Заводский муниципальный район | D90: 76610000 | E90: Солонеченское | F90: 76610420 | G90: 28502142 | H90: Администрация сельского поселения "Солонеченское" | I90: 7504002024 | J90: 750401001 | K90: производство комбинированная выработка | L90: WARM
A91: 90 | B91: Забайкальский край | C91: Газимуро-Заводский муниципальный район | D91: 76610000 | E91: Солонеченское | F91: 76610420 | G91: 26375487 | H91: ЖКХ Администрации сельского поселения "Солонеченское" | I91: 7504002024 | J91: 750401001 | K91: производство (некомбинированная выработка)+передача+сбыт | L91: WARM
A92: 91 | B92: Забайкальский край | C92: Газимуро-Заводский муниципальный район | D92: 76610000 | E92: Солонеченское | F92: 76610420 | G92: 30372462 | H92: ООО "Авангард плюс" | I92: 7524018664 | J92: 752401001 | K92: производство (некомбинированная выработка)+передача+сбыт | L92: WARM
A93: 92 | B93: Забайкальский край | C93: Газимуро-Заводский муниципальный район | D93: 76610000 | E93: Солонеченское | F93: 76610420 | G93: 26498157 | H93: ООО Заря | I93: 7504002232 | J93: 750401001 | K93: производство (некомбинированная выработка)+передача+сбыт | L93: WARM
A94: 93 | B94: Забайкальский край | C94: Город Краснокаменск и Краснокаменский муниципальный район | D94: 76621000 | E94: Кайластуйское | F94: 76621420 | G94: 26777501 | H94: ИП Мироманов С.М. | I94: 753002157620 | J94: 753001001 | K94: производство (некомбинированная выработка)+передача+сбыт | L94: WARM
A95: 94 | B95: Забайкальский край | C95: Город Краснокаменск и Краснокаменский муниципальный район | D95: 76621000 | E95: Ковылинское | F95: 76621402 | G95: 26647617 | H95: Администрация муниципального образования сельское поселение "Ковылинское" | I95: 7530010744 | J95: 753001001 | K95: Теплоноситель - Сбыт :: Производство :: Передача | L95: WARM
A96: 95 | B96: Забайкальский край | C96: Город Краснокаменск и Краснокаменский муниципальный район | D96: 76621000 | E96: Ковылинское | F96: 76621402 | G96: 26647617 | H96: Администрация муниципального образования сельское поселение "Ковылинское" | I96: 7530010744 | J96: 753001001 | K96: производство (некомбинированная выработка)+передача+сбыт | L96: WARM
A97: 96 | B97: Забайкальский край | C97: Город Краснокаменск и Краснокаменский муниципальный район | D97: 76621000 | E97: Ковылинское | F97: 76621402 | G97: 26544511 | H97: ООО "Коммунальник МЦК" | I97: 7530012798 | J97: 753001001 | K97: производство (некомбинированная выработка)+передача+сбыт | L97: WARM
A98: 97 | B98: Забайкальский край | C98: Город Краснокаменск и Краснокаменский муниципальный район | D98: 76621000 | E98: Ковылинское | F98: 76621402 | G98: 28874725 | H98: ООО "Теплосети" | I98: 7530013985 | J98: 753001001 | K98: производство (некомбинированная выработка)+передача+сбыт | L98: WARM
A99: 98 | B99: Забайкальский край | C99: Город Краснокаменск и Краснокаменский муниципальный район | D99: 76621000 | E99: Краснокаменское | F99: 76621101 | G99: 26375573 | H99: ПАО "ППГХО" | I99: 7530000048 | J99: 753001001 | K99: Передача+Сбыт | L99: WARM
A100: 99 | B100: Забайкальский край | C100: Город Краснокаменск и Краснокаменский муниципальный район | D100: 76621000 | E100: Краснокаменское | F100: 76621101 | G100: 26375573 | H100: ПАО "ППГХО" | I100: 7530000048 | J100: 753001001 | K100: производство комбинированная выработка | L100: WARM
A101: 100 | B101: Забайкальский край | C101: Город Краснокаменск и Краснокаменский муниципальный район | D101: 76621000 | E101: Краснокаменское | F101: 76621101 | G101: 26381493 | H101: УМП "ЖКУ" | I101: 7530007886 | J101: 753001001 | K101: Передача+Сбыт | L101: WARM
A102: 101 | B102: Забайкальский край | C102: Город Краснокаменск и Краснокаменский муниципальный район | D102: 76621000 | E102: Маргуцекское | F102: 76621427 | G102: 26544511 | H102: ООО "Коммунальник МЦК" | I102: 7530012798 | J102: 753001001 | K102: производство (некомбинированная выработка)+передача+сбыт | L102: WARM
A103: 102 | B103: Забайкальский край | C103: Город Краснокаменск и Краснокаменский муниципальный район | D103: 76621000 | E103: Маргуцекское | F103: 76621427 | G103: 28874738 | H103: ООО "Теплосервис" | I103: 7530013992 | J103: 753001001 | K103: производство (некомбинированная выработка)+передача+сбыт | L103: WARM
A104: 103 | B104: Забайкальский край | C104: Город Краснокаменск и Краснокаменский муниципальный район | D104: 76621000 | E104: Соктуй-Милозанское | F104: 76621430 | G104: 26649633 | H104: Комитет по управлению образованием Администрации МР «Город Краснокаменск и Краснокаменский район» | I104: 7530006850 | J104: 753001001 | K104: производство (некомбинированная выработка)+передача+сбыт | L104: WARM
A105: 104 | B105: Забайкальский край | C105: Город Краснокаменск и Краснокаменский муниципальный район | D105: 76621000 | E105: Целиннинское | F105: 76621445 | G105: 26544511 | H105: ООО "Коммунальник МЦК" | I105: 7530012798 | J105: 753001001 | K105: производство (некомбинированная выработка)+передача+сбыт | L105: WARM
A106: 105 | B106: Забайкальский край | C106: Город Краснокаменск и Краснокаменский муниципальный район | D106: 76621000 | E106: Целиннинское | F106: 76621445 | G106: 28449215 | H106: ООО "Теплосбыт" | I106: 7530013777 | J106: 753001001 | K106: производство (некомбинированная выработка)+передача+сбыт | L106: WARM
A107: 106 | B107: Забайкальский край | C107: Городской округ "Город Петровск-Забайкальский" | D107: 76715000 | E107: Городской округ "Город Петровск-Забайкальский" | F107: 76715000 | G107: 30335229 | H107: АО "ГУ ЖКХ" | I107: 5116000922 | J107: 770401001 | K107: производство (некомбинированная выработка)+передача+сбыт | L107: WARM
A108: 107 | B108: Забайкальский край | C108: Городской округ "Город Петровск-Забайкальский" | D108: 76715000 | E108: Городской округ "Город Петровск-Забайкальский" | F108: 76715000 | G108: 30431003 | H108: АО "ГУ ЖКХ" | I108: 5116000922 | J108: 753645001 | K108: производство (некомбинированная выработка)+передача+сбыт | L108: WARM
A109: 108 | B109: Забайкальский край | C109: Городской округ "Город Петровск-Забайкальский" | D109: 76715000 | E109: Городской округ "Город Петровск-Забайкальский" | F109: 76715000 | G109: 26499780 | H109: ГСУ СО "Петровск-Забайкальский дом интернат для умственно-отсталых детей" | I109: 7531001372 | J109: 753101001 | K109: производство (некомбинированная выработка)+передача+сбыт | L109: WARM
A110: 109 | B110: Забайкальский край | C110: Городской округ "Город Петровск-Забайкальский" | D110: 76715000 | E110: Городской округ "Город Петровск-Забайкальский" | F110: 76715000 | G110: 26498139 | H110: Забайкальская дирекция по тепловодоснабжению - структурное подразделение Центральной дирекции по тепловодоснабжению филиала ОАО "РЖД" | I110: 7708503727 | J110: 753602001 | K110: производство (некомбинированная выработка)+передача+сбыт | L110: WARM
A111: 110 | B111: Забайкальский край | C111: Городской округ "Город Петровск-Забайкальский" | D111: 76715000 | E111: Городской округ "Город Петровск-Забайкальский" | F111: 76715000 | G111: 26498141 | H111: ООО "Коммунальник" | I111: 7536089691 | J111: 753601001 | K111: Передача+Сбыт | L111: WARM
A112: 111 | B112: Забайкальский край | C112: Городской округ "Город Петровск-Забайкальский" | D112: 76715000 | E112: Городской округ "Город Петровск-Забайкальский" | F112: 76715000 | G112: 26498141 | H112: ООО "Коммунальник" | I112: 7536089691 | J112: 753601001 | K112: производство (некомбинированная выработка)+передача+сбыт | L112: WARM
A113: 112 | B113: Забайкальский край | C113: Городской округ "Город Петровск-Забайкальский" | D113: 76715000 | E113: Городской округ "Город Петровск-Забайкальский" | F113: 76715000 | G113: 26498141 | H113: ООО "Коммунальник" | I113: 7536089691 | J113: 753601001 | K113: производство комбинированная выработка | L113: WARM
A114: 113 | B114: Забайкальский край | C114: Городской округ "Город Петровск-Забайкальский" | D114: 76715000 | E114: Городской округ "Город Петровск-Забайкальский" | F114: 76715000 | G114: 26382809 | H114: ФГУ "Бадинская КЭЧрайона" МО РФ | I114: 7523003288 | J114: 752301001 | K114: производство (некомбинированная выработка)+передача+сбыт | L114: WARM
A115: 114 | B115: Забайкальский край | C115: Городской округ "Город Петровск-Забайкальский" | D115: 76715000 | E115: Городской округ "Город Петровск-Забайкальский" | F115: 76715000 | G115: 26834786 | H115: Филиал ОАО "Ремонтно-эксплуатационное управление "Забайкальский" | I115: 7714783092 | J115: 753643001 | K115: производство (некомбинированная выработка)+передача+сбыт | L115: WARM
A116: 115 | B116: Забайкальский край | C116: Городской округ "Город Чита" | D116: 76701000 | E116: Городской округ "Город Чита" | F116: 76701000 | G116: 30335229 | H116: АО "ГУ ЖКХ" | I116: 5116000922 | J116: 770401001 | K116: производство (некомбинированная выработка)+передача+сбыт | L116: WARM
A117: 116 | B117: Забайкальский край | C117: Городской округ "Город Чита" | D117: 76701000 | E117: Городской округ "Город Чита" | F117: 76701000 | G117: 30431003 | H117: АО "ГУ ЖКХ" | I117: 5116000922 | J117: 753645001 | K117: производство (некомбинированная выработка)+передача+сбыт | L117: WARM
A118: 117 | B118: Забайкальский край | C118: Городской округ "Город Чита" | D118: 76701000 | E118: Городской округ "Город Чита" | F118: 76701000 | G118: 26499766 | H118: АО "Читинский молочный комбинат" | I118: 7534001638 | J118: 753401001 | K118: производство (некомбинированная выработка)+передача+сбыт | L118: WARM
A119: 118 | B119: Забайкальский край | C119: Городской округ "Город Чита" | D119: 76701000 | E119: Городской округ "Город Чита" | F119: 76701000 | G119: 27480465 | H119: Вагонное ремонтное депо - филиала ОАО "РЖД" | I119: 7708503727 | J119: 753631001 | K119: производство (некомбинированная выработка)+передача+сбыт | L119: WARM
A120: 119 | B120: Забайкальский край | C120: Городской округ "Город Чита" | D120: 76701000 | E120: Городской округ "Город Чита" | F120: 76701000 | G120: 28466181 | H120: Вагонное ремонтное депо Чита | I120: 7708737517 | J120: 753645001 | K120: производство (некомбинированная выработка)+передача+сбыт | L120: WARM
A121: 120 | B121: Забайкальский край | C121: Городской округ "Город Чита" | D121: 76701000 | E121: Городской округ "Город Чита" | F121: 76701000 | G121: 26647655 | H121: ГОУ НПО «Профессиональное училище № 33» | I121: 7537007941 | J121: 753701001 | K121: производство (некомбинированная выработка)+передача+сбыт | L121: WARM
A122: 121 | B122: Забайкальский край | C122: Городской округ "Город Чита" | D122: 76701000 | E122: Городской округ "Город Чита" | F122: 76701000 | G122: 26823623 | H122: ГУ "Противопожарная служба Забайкальского края" | I122: 7536057019 | J122: 753601001 | K122: производство (некомбинированная выработка)+передача+сбыт | L122: WARM
A123: 122 | B123: Забайкальский край | C123: Городской округ "Город Чита" | D123: 76701000 | E123: Городской округ "Город Чита" | F123: 76701000 | G123: 26499776 | H123: Государственное образовательное учреждение «Профессиональный лицей №2» | I123: 7534008305 | J123: 753401001 | K123: производство (некомбинированная выработка)+передача+сбыт | L123: WARM
A124: 123 | B124: Забайкальский край | C124: Городской округ "Город Чита" | D124: 76701000 | E124: Городской округ "Город Чита" | F124: 76701000 | G124: 26498139 | H124: Забайкальская дирекция по тепловодоснабжению - структурное подразделение Центральной дирекции по тепловодоснабжению филиала ОАО "РЖД" | I124: 7708503727 | J124: 753602001 | K124: производство (некомбинированная выработка)+передача+сбыт | L124: WARM
A125: 124 | B125: Забайкальский край | C125: Городской округ "Город Чита" | D125: 76701000 | E125: Городской округ "Город Чита" | F125: 76701000 | G125: 26499826 | H125: ИП Балян С.В. | I125: 753605126326 | J125: 753601001 | K125: производство (некомбинированная выработка)+передача+сбыт | L125: WARM
A126: 125 | B126: Забайкальский край | C126: Городской округ "Город Чита" | D126: 76701000 | E126: Городской округ "Город Чита" | F126: 76701000 | G126: 28795860 | H126: ИП Кубасов Сергей Сергеевич | I126: 753614468703 | J126: отсутствует | K126: Передача+Сбыт | L126: WARM
A127: 126 | B127: Забайкальский край | C127: Городской округ "Город Чита" | D127: 76701000 | E127: Городской округ "Город Чита" | F127: 76701000 | G127: 28795860 | H127: ИП Кубасов Сергей Сергеевич | I127: 753614468703 | J127: отсутствует | K127: производство комбинированная выработка | L127: WARM
A128: 127 | B128: Забайкальский край | C128: Городской округ "Город Чита" | D128: 76701000 | E128: Городской округ "Город Чита" | F128: 76701000 | G128: 30874114 | H128: Муниципальное бюджетное учреждение "Ремонтное эксплуатационное объединение" | I128: 7536156228 | J128: 753601001 | K128: производство (некомбинированная выработка)+передача | L128: WARM
A129: 128 | B129: Забайкальский край | C129: Городской округ "Город Чита" | D129: 76701000 | E129: Городской округ "Город Чита" | F129: 76701000 | G129: 27480530 | H129: ОАО "Ингода" | I129: 7532001336 | J129: 753601001 | K129: производство (некомбинированная выработка)+передача+сбыт | L129: WARM
A130: 129 | B130: Забайкальский край | C130: Городской округ "Город Чита" | D130: 76701000 | E130: Городской округ "Город Чита" | F130: 76701000 | G130: 26823620 | H130: ОАО "Иногда" | I130: 7532001336 | J130: 753201001 | K130: производство (некомбинированная выработка)+передача+сбыт | L130: WARM
A131: 130 | B131: Забайкальский край | C131: Городской округ "Город Чита" | D131: 76701000 | E131: Городской округ "Город Чита" | F131: 76701000 | G131: 26499772 | H131: ОАО "Машзавод" | I131: 7536000728 | J131: 753601001 | K131: производство (некомбинированная выработка)+передача+сбыт | L131: WARM
A132: 131 | B132: Забайкальский край | C132: Городской округ "Город Чита" | D132: 76701000 | E132: Городской округ "Город Чита" | F132: 76701000 | G132: 26499208 | H132: ОАО "Производственно-ремонтное предприятие" | I132: 7537011994 | J132: 753501001 | K132: производство (некомбинированная выработка)+передача+сбыт | L132: WARM
A133: 132 | B133: Забайкальский край | C133: Городской округ "Город Чита" | D133: 76701000 | E133: Городской округ "Город Чита" | F133: 76701000 | G133: 28486007 | H133: ОАО "Региональное управление строительства" | I133: 7530008329 | J133: 753601001 | K133: Передача | L133: WARM
A134: 133 | B134: Забайкальский край | C134: Городской округ "Город Чита" | D134: 76701000 | E134: Городской округ "Город Чита" | F134: 76701000 | G134: 26375584 | H134: ОАО "Силикатный завод" | I134: 7534000698 | J134: 753601001 | K134: производство (некомбинированная выработка)+передача | L134: WARM
A135: 134 | B135: Забайкальский край | C135: Городской округ "Город Чита" | D135: 76701000 | E135: Городской округ "Город Чита" | F135: 76701000 | G135: 26375591 | H135: ОАО "Читарегион ОПР" | I135: 7537008688 | J135: 753601001 | K135: производство (некомбинированная выработка)+передача+сбыт | L135: WARM
A136: 135 | B136: Забайкальский край | C136: Городской округ "Город Чита" | D136: 76701000 | E136: Городской округ "Город Чита" | F136: 76701000 | G136: 27585020 | H136: ОАО "Читинский мебельно-деревообрабатывающий комбинат Даурия" | I136: 7534014161 | J136: 753401001 | K136: производство (некомбинированная выработка)+передача+сбыт | L136: WARM
A137: 136 | B137: Забайкальский край | C137: Городской округ "Город Чита" | D137: 76701000 | E137: Городской округ "Город Чита" | F137: 76701000 | G137: 27480213 | H137: ОАО «88 центральный автомобильный ремонтный завод» п. Песчанка | I137: 7536103748 | J137: 753650001 | K137: Передача | L137: WARM
A138: 137 | B138: Забайкальский край | C138: Городской округ "Город Чита" | D138: 76701000 | E138: Городской округ "Город Чита" | F138: 76701000 | G138: 26498143 | H138: ОАО «Межрегиональная распределительная сетевая компания Сибири»- филиал "Читаэнерго" | I138: 2460069527 | J138: 753643001 | K138: производство (некомбинированная выработка)+передача+сбыт | L138: WARM
A139: 138 | B139: Забайкальский край | C139: Городской округ "Город Чита" | D139: 76701000 | E139: Городской округ "Город Чита" | F139: 76701000 | G139: 28819882 | H139: ООО "Автокомлекс Магистральный" | I139: 7536118254 | J139: 753601001 | K139: производство (некомбинированная выработка)+передача+сбыт | L139: WARM
A140: 139 | B140: Забайкальский край | C140: Городской округ "Город Чита" | D140: 76701000 | E140: Городской округ "Город Чита" | F140: 76701000 | G140: 26499770 | H140: ООО "Забсибхлеб" | I140: 7524010175 | J140: 753601001 | K140: производство (некомбинированная выработка)+передача+сбыт | L140: WARM
A141: 140 | B141: Забайкальский край | C141: Городской округ "Город Чита" | D141: 76701000 | E141: Городской округ "Город Чита" | F141: 76701000 | G141: 30873192 | H141: ООО "Каскад плюс" | I141: 7536076491 | J141: 753601001 | K141: производство (некомбинированная выработка)+сбыт | L141: WARM
A142: 141 | B142: Забайкальский край | C142: Городской округ "Город Чита" | D142: 76701000 | E142: Городской округ "Город Чита" | F142: 76701000 | G142: 26320244 | H142: ООО "Комбинат хлебопродуктов" | I142: 7535002176 | J142: 753501001 | K142: производство (некомбинированная выработка)+передача+сбыт | L142: WARM
A143: 142 | B143: Забайкальский край | C143: Городской округ "Город Чита" | D143: 76701000 | E143: Городской округ "Город Чита" | F143: 76701000 | G143: 26498141 | H143: ООО "Коммунальник" | I143: 7536089691 | J143: 753601001 | K143: Передача+Сбыт | L143: WARM
A144: 143 | B144: Забайкальский край | C144: Городской округ "Город Чита" | D144: 76701000 | E144: Городской округ "Город Чита" | F144: 76701000 | G144: 26498141 | H144: ООО "Коммунальник" | I144: 7536089691 | J144: 753601001 | K144: производство (некомбинированная выработка)+передача+сбыт | L144: WARM
A145: 144 | B145: Забайкальский край | C145: Городской округ "Город Чита" | D145: 76701000 | E145: Городской округ "Город Чита" | F145: 76701000 | G145: 26498141 | H145: ООО "Коммунальник" | I145: 7536089691 | J145: 753601001 | K145: производство комбинированная выработка | L145: WARM
A146: 145 | B146: Забайкальский край | C146: Городской округ "Город Чита" | D146: 76701000 | E146: Городской округ "Город Чита" | F146: 76701000 | G146: 28460549 | H146: ООО "Куртье" | I146: 7534013873 | J146: 753401001 | K146: производство (некомбинированная выработка)+передача+сбыт | L146: WARM
A147: 146 | B147: Забайкальский край | C147: Городской округ "Город Чита" | D147: 76701000 | E147: Городской округ "Город Чита" | F147: 76701000 | G147: 28795704 | H147: ООО "МАСТЕР" | I147: 8001006673 | J147: 800101001 | K147: производство (некомбинированная выработка)+передача+сбыт | L147: WARM
A148: 147 | B148: Забайкальский край | C148: Городской округ "Город Чита" | D148: 76701000 | E148: Городской округ "Город Чита" | F148: 76701000 | G148: 28535705 | H148: ООО "Мир" | I148: 7536050334 | J148: 753601001 | K148: Передача | L148: WARM
A149: 148 | B149: Забайкальский край | C149: Городской округ "Город Чита" | D149: 76701000 | E149: Городской округ "Город Чита" | F149: 76701000 | G149: 27553823 | H149: ООО "Производственно-ремонтное предприятие" | I149: 7536120817 | J149: 753601001 | K149: производство (некомбинированная выработка)+передача+сбыт | L149: WARM
A150: 149 | B150: Забайкальский край | C150: Городской округ "Город Чита" | D150: 76701000 | E150: Городской округ "Город Чита" | F150: 76701000 | G150: 27505147 | H150: ООО "Радченко" | I150: 7536056600 | J150: 753601001 | K150: Передача | L150: WARM
A151: 150 | B151: Забайкальский край | C151: Городской округ "Город Чита" | D151: 76701000 | E151: Городской округ "Город Чита" | F151: 76701000 | G151: 26499778 | H151: ООО "Спецмонтажремонт" | I151: 7536080191 | J151: 753601001 | K151: производство (некомбинированная выработка)+передача+сбыт | L151: WARM
A152: 151 | B152: Забайкальский край | C152: Городской округ "Город Чита" | D152: 76701000 | E152: Городской округ "Город Чита" | F152: 76701000 | G152: 26375592 | H152: ООО "ТЭП Кадалинское" | I152: 7537011352 | J152: 753701001 | K152: производство (некомбинированная выработка)+передача | L152: WARM
A153: 152 | B153: Забайкальский край | C153: Городской округ "Город Чита" | D153: 76701000 | E153: Городской округ "Город Чита" | F153: 76701000 | G153: 28827915 | H153: ООО "Теплоэнергосервис" | I153: 7536144649 | J153: 753601001 | K153: производство (некомбинированная выработка)+передача+сбыт | L153: WARM
A154: 153 | B154: Забайкальский край | C154: Городской округ "Город Чита" | D154: 76701000 | E154: Городской округ "Город Чита" | F154: 76701000 | G154: 26649647 | H154: ООО "Торговый дом "Даурия" | I154: 7536106562 | J154: 752401001 | K154: производство (некомбинированная выработка)+передача+сбыт | L154: WARM
A155: 154 | B155: Забайкальский край | C155: Городской округ "Город Чита" | D155: 76701000 | E155: Городской округ "Город Чита" | F155: 76701000 | G155: 27500581 | H155: ООО "ЧитаЭнергоАудит" | I155: 7536115687 | J155: 753601001 | K155: производство (некомбинированная выработка)+передача+сбыт | L155: WARM
A156: 155 | B156: Забайкальский край | C156: Городской округ "Город Чита" | D156: 76701000 | E156: Городской округ "Город Чита" | F156: 76701000 | G156: 28873152 | H156: ООО "Читаснаб" | I156: 7536130861 | J156: 753601001 | K156: производство (некомбинированная выработка)+передача+сбыт | L156: WARM
A157: 156 | B157: Забайкальский край | C157: Городской округ "Город Чита" | D157: 76701000 | E157: Городской округ "Город Чита" | F157: 76701000 | G157: 27480445 | H157: ООО "Энергожилстрой" | I157: 7536066609 | J157: 753601001 | K157: Передача | L157: WARM
A158: 157 | B158: Забайкальский край | C158: Городской округ "Город Чита" | D158: 76701000 | E158: Городской округ "Город Чита" | F158: 76701000 | G158: 27480523 | H158: ООО "Янта-Чита" | I158: 7534018409 | J158: 753401001 | K158: производство (некомбинированная выработка)+передача+сбыт | L158: WARM
A159: 158 | B159: Забайкальский край | C159: Городской округ "Город Чита" | D159: 76701000 | E159: Городской округ "Город Чита" | F159: 76701000 | G159: 27970607 | H159: ООО «Тепловик-Чита» | I159: 7536127516 | J159: 753601001 | K159: производство (некомбинированная выработка)+передача+сбыт | L159: WARM
A160: 159 | B160: Забайкальский край | C160: Городской округ "Город Чита" | D160: 76701000 | E160: Городской округ "Город Чита" | F160: 76701000 | G160: 26375588 | H160: ООО ЖЭУ "УЮТ" | I160: 7534018328 | J160: 753401001 | K160: Передача+Сбыт | L160: WARM
A161: 160 | B161: Забайкальский край | C161: Городской округ "Город Чита" | D161: 76701000 | E161: Городской округ "Город Чита" | F161: 76701000 | G161: 26499774 | H161: Открытое акционерное общество «БИОСП» | I161: 7535008308 | J161: 753501001 | K161: производство (некомбинированная выработка)+передача+сбыт | L161: WARM
A162: 161 | B162: Забайкальский край | C162: Городской округ "Город Чита" | D162: 76701000 | E162: Городской округ "Город Чита" | F162: 76701000 | G162: 26498149 | H162: ПАО "ТГК-14" | I162: 7534018889 | J162: 753401001 | K162: Передача+Сбыт | L162: WARM
A163: 162 | B163: Забайкальский край | C163: Городской округ "Город Чита" | D163: 76701000 | E163: Городской округ "Город Чита" | F163: 76701000 | G163: 26498149 | H163: ПАО "ТГК-14" | I163: 7534018889 | J163: 753401001 | K163: производство (некомбинированная выработка)+передача+сбыт | L163: WARM
A164: 163 | B164: Забайкальский край | C164: Городской округ "Город Чита" | D164: 76701000 | E164: Городской округ "Город Чита" | F164: 76701000 | G164: 26498149 | H164: ПАО "ТГК-14" | I164: 7534018889 | J164: 753401001 | K164: производство комбинированная выработка | L164: WARM
A165: 164 | B165: Забайкальский край | C165: Городской округ "Город Чита" | D165: 76701000 | E165: Городской округ "Город Чита" | F165: 76701000 | G165: 26449407 | H165: Свечинский районный телекоммуникационный узел (РТУ) Кировского филиала ОАО "Волгателеком" | I165: 5260901817 | J165: 432832002 | K165: производство (некомбинированная выработка)+передача+сбыт | L165: WARM
A166: 165 | B166: Забайкальский край | C166: Городской округ "Город Чита" | D166: 76701000 | E166: Городской округ "Город Чита" | F166: 76701000 | G166: 26499768 | H166: ФГУГП "Читагеологоразведка" | I166: 7537010045 | J166: 753701001 | K166: производство (некомбинированная выработка)+передача+сбыт | L166: WARM
A167: 166 | B167: Забайкальский край | C167: Городской округ "Город Чита" | D167: 76701000 | E167: Городской округ "Город Чита" | F167: 76701000 | G167: 27505039 | H167: Федеральная служба охраны России в лице войсковой части 28685 | I167: 7534010174 | J167: 753401001 | K167: производство (некомбинированная выработка)+передача+сбыт | L167: WARM
A168: 167 | B168: Забайкальский край | C168: Городской округ "Город Чита" | D168: 76701000 | E168: Городской округ "Город Чита" | F168: 76701000 | G168: 26834786 | H168: Филиал ОАО "Ремонтно-эксплуатационное управление "Забайкальский" | I168: 7714783092 | J168: 753643001 | K168: производство (некомбинированная выработка)+передача+сбыт | L168: WARM
A169: 168 | B169: Забайкальский край | C169: Городской округ "Город Чита" | D169: 76701000 | E169: Городской округ "Город Чита" | F169: 76701000 | G169: 27480161 | H169: Читинская дистанция гражданских сооружений структурное подразделение Дирекции по эксплуатации зданий и сооружений структурного подразделения Забайкальской железной дороги филиала ОАО "РЖД" | I169: 7708503727 | J169: 770850001 | K169: производство (некомбинированная выработка)+передача+сбыт | L169: WARM
A170: 169 | B170: Забайкальский край | C170: Городской округ "Посёлок Горный (ЗАТО)" | D170: 76785000 | E170: Городской округ "Посёлок Горный (ЗАТО)" | F170: 76785000 | G170: 26320247 | H170: 36 КЭЧ | I170: 7533000310 | J170: 753301001 | K170: Передача+Сбыт | L170: WARM
A171: 170 | B171: Забайкальский край | C171: Городской округ "Посёлок Горный (ЗАТО)" | D171: 76785000 | E171: Городской округ "Посёлок Горный (ЗАТО)" | F171: 76785000 | G171: 26320247 | H171: 36 КЭЧ | I171: 7533000310 | J171: 753301001 | K171: производство комбинированная выработка | L171: WARM
A172: 171 | B172: Забайкальский край | C172: Городской округ "Посёлок Горный (ЗАТО)" | D172: 76785000 | E172: Городской округ "Посёлок Горный (ЗАТО)" | F172: 76785000 | G172: 30335229 | H172: АО "ГУ ЖКХ" | I172: 5116000922 | J172: 770401001 | K172: производство (некомбинированная выработка)+передача+сбыт | L172: WARM
A173: 172 | B173: Забайкальский край | C173: Городской округ "Посёлок Горный (ЗАТО)" | D173: 76785000 | E173: Городской округ "Посёлок Горный (ЗАТО)" | F173: 76785000 | G173: 30431003 | H173: АО "ГУ ЖКХ" | I173: 5116000922 | J173: 753645001 | K173: производство (некомбинированная выработка)+передача+сбыт | L173: WARM
A174: 173 | B174: Забайкальский край | C174: Городской округ "Посёлок Горный (ЗАТО)" | D174: 76785000 | E174: Городской округ "Посёлок Горный (ЗАТО)" | F174: 76785000 | G174: 26834786 | H174: Филиал ОАО "Ремонтно-эксплуатационное управление "Забайкальский" | I174: 7714783092 | J174: 753643001 | K174: производство (некомбинированная выработка)+передача+сбыт | L174: WARM
A175: 174 | B175: Забайкальский край | C175: Городской округ "Поселок Агинское" | D175: 76702000 | E175: Городской округ "Поселок Агинское" | F175: 76702000 | G175: 26499782 | H175: ООО "Тепловик" | I175: 8001015540 | J175: 800101001 | K175: производство (некомбинированная выработка)+передача+сбыт | L175: WARM
A176: 175 | B176: Забайкальский край | C176: Городской округ "Поселок Агинское" | D176: 76702000 | E176: Городской округ "Поселок Агинское" | F176: 76702000 | G176: 26499784 | H176: ООО "Теплосервис" | I176: 8001015558 | J176: 800101001 | K176: производство (некомбинированная выработка)+передача+сбыт | L176: WARM
A177: 176 | B177: Забайкальский край | C177: Городской округ "Поселок Агинское" | D177: 76702000 | E177: Городской округ "Поселок Агинское" | F177: 76702000 | G177: 26499786 | H177: ООО "Теплоэнергия" | I177: 8001015533 | J177: 800101001 | K177: производство (некомбинированная выработка)+передача+сбыт | L177: WARM
A178: 177 | B178: Забайкальский край | C178: Дульдургинский муниципальный район | D178: 76611000 | E178: Алханай | F178: 76611404 | G178: 26499816 | H178: МП "Универсал" | I178: 8002021018 | J178: 800201001 | K178: производство (некомбинированная выработка)+передача+сбыт | L178: WARM
A179: 178 | B179: Забайкальский край | C179: Дульдургинский муниципальный район | D179: 76611000 | E179: Алханай | F179: 76611404 | G179: 28867637 | H179: МУП "Универсал+" | I179: 8002004189 | J179: 800201001 | K179: производство (некомбинированная выработка)+передача+сбыт | L179: WARM
A180: 179 | B180: Забайкальский край | C180: Дульдургинский муниципальный район | D180: 76611000 | E180: Алханай | F180: 76611404 | G180: 27878468 | H180: ООО "Энергосервис" | I180: 8002004083 | J180: 800201001 | K180: производство (некомбинированная выработка)+передача+сбыт | L180: WARM
A181: 180 | B181: Забайкальский край | C181: Дульдургинский муниципальный район | D181: 76611000 | E181: Алханай | F181: 76611404 | G181: 30866315 | H181: Общество с ограниченной ответственностью "УНИВЕРСАЛ+" | I181: 8002021378 | J181: 800201001 | K181: производство (некомбинированная выработка)+передача+сбыт | L181: WARM
A182: 181 | B182: Забайкальский край | C182: Дульдургинский муниципальный район | D182: 76611000 | E182: Ара-Иля | F182: 76611408 | G182: 26499818 | H182: Администрация сельского поселения "Ара-Иля" | I182: 8002020046 | J182: 800201001 | K182: производство (некомбинированная выработка)+передача+сбыт | L182: WARM
A183: 182 | B183: Забайкальский край | C183: Дульдургинский муниципальный район | D183: 76611000 | E183: Ара-Иля | F183: 76611408 | G183: 28867637 | H183: МУП "Универсал+" | I183: 8002004189 | J183: 800201001 | K183: производство (некомбинированная выработка)+передача+сбыт | L183: WARM
A184: 183 | B184: Забайкальский край | C184: Дульдургинский муниципальный район | D184: 76611000 | E184: Ара-Иля | F184: 76611408 | G184: 27878468 | H184: ООО "Энергосервис" | I184: 8002004083 | J184: 800201001 | K184: производство (некомбинированная выработка)+передача+сбыт | L184: WARM
A185: 184 | B185: Забайкальский край | C185: Дульдургинский муниципальный район | D185: 76611000 | E185: Ара-Иля | F185: 76611408 | G185: 30866315 | H185: Общество с ограниченной ответственностью "УНИВЕРСАЛ+" | I185: 8002021378 | J185: 800201001 | K185: производство (некомбинированная выработка)+передача+сбыт | L185: WARM
A186: 185 | B186: Забайкальский край | C186: Дульдургинский муниципальный район | D186: 76611000 | E186: Бальзино | F186: 76611412 | G186: 27480613 | H186: Администрация с.п."Бальзино" | I186: 8002018738 | J186: 800201001 | K186: производство (некомбинированная выработка)+передача+сбыт | L186: WARM
A187: 186 | B187: Забайкальский край | C187: Дульдургинский муниципальный район | D187: 76611000 | E187: Бальзино | F187: 76611412 | G187: 28867637 | H187: МУП "Универсал+" | I187: 8002004189 | J187: 800201001 | K187: производство (некомбинированная выработка)+передача+сбыт | L187: WARM
A188: 187 | B188: Забайкальский край | C188: Дульдургинский муниципальный район | D188: 76611000 | E188: Бальзино | F188: 76611412 | G188: 27878468 | H188: ООО "Энергосервис" | I188: 8002004083 | J188: 800201001 | K188: производство (некомбинированная выработка)+передача+сбыт | L188: WARM
A189: 188 | B189: Забайкальский край | C189: Дульдургинский муниципальный район | D189: 76611000 | E189: Бальзино | F189: 76611412 | G189: 30866315 | H189: Общество с ограниченной ответственностью "УНИВЕРСАЛ+" | I189: 8002021378 | J189: 800201001 | K189: производство (некомбинированная выработка)+передача+сбыт | L189: WARM
A190: 189 | B190: Забайкальский край | C190: Дульдургинский муниципальный район | D190: 76611000 | E190: Дульдурга | F190: 76611416 | G190: 26499824 | H190: ГУЗ "Дульдургинская ЦРБ" | I190: 8002003001 | J190: 800201001 | K190: производство (некомбинированная выработка)+передача+сбыт | L190: WARM
A191: 190 | B191: Забайкальский край | C191: Дульдургинский муниципальный район | D191: 76611000 | E191: Дульдурга | F191: 76611416 | G191: 26499826 | H191: ИП Балян С.В. | I191: 753605126326 | J191: 753601001 | K191: производство (некомбинированная выработка)+передача+сбыт | L191: WARM
A192: 191 | B192: Забайкальский край | C192: Дульдургинский муниципальный район | D192: 76611000 | E192: Дульдурга | F192: 76611416 | G192: 26499822 | H192: МП ЖКХ и БУ с. Дульдурга | I192: 8002019026 | J192: 800201001 | K192: производство (некомбинированная выработка)+передача+сбыт | L192: WARM
A193: 192 | B193: Забайкальский край | C193: Дульдургинский муниципальный район | D193: 76611000 | E193: Дульдурга | F193: 76611416 | G193: 26858867 | H193: МП ЖКХ и БУ с. Дульдурга | I193: 8002019026 | J193: 800201001 | K193: производство (некомбинированная выработка)+передача+сбыт | L193: WARM
A194: 193 | B194: Забайкальский край | C194: Дульдургинский муниципальный район | D194: 76611000 | E194: Дульдурга | F194: 76611416 | G194: 28867637 | H194: МУП "Универсал+" | I194: 8002004189 | J194: 800201001 | K194: производство (некомбинированная выработка)+передача+сбыт | L194: WARM
A195: 194 | B195: Забайкальский край | C195: Дульдургинский муниципальный район | D195: 76611000 | E195: Дульдурга | F195: 76611416 | G195: 26772530 | H195: ООО "Дульдурга" | I195: 8002003530 | J195: 800201001 | K195: производство (некомбинированная выработка)+передача+сбыт | L195: WARM
A196: 195 | B196: Забайкальский край | C196: Дульдургинский муниципальный район | D196: 76611000 | E196: Дульдурга | F196: 76611416 | G196: 27878468 | H196: ООО "Энергосервис" | I196: 8002004083 | J196: 800201001 | K196: производство (некомбинированная выработка)+передача+сбыт | L196: WARM
A197: 196 | B197: Забайкальский край | C197: Дульдургинский муниципальный район | D197: 76611000 | E197: Дульдурга | F197: 76611416 | G197: 30866315 | H197: Общество с ограниченной ответственностью "УНИВЕРСАЛ+" | I197: 8002021378 | J197: 800201001 | K197: производство (некомбинированная выработка)+передача+сбыт | L197: WARM
A198: 197 | B198: Забайкальский край | C198: Дульдургинский муниципальный район | D198: 76611000 | E198: Зуткулей | F198: 76611420 | G198: 27505207 | H198: Администрация сельского поселения "Зуткулей" | I198: 8002018199 | J198: 800201001 | K198: производство (некомбинированная выработка)+передача+сбыт | L198: WARM
A199: 198 | B199: Забайкальский край | C199: Дульдургинский муниципальный район | D199: 76611000 | E199: Зуткулей | F199: 76611420 | G199: 26499828 | H199: МП "Темп" | I199: 8002003410 | J199: 800201001 | K199: производство (некомбинированная выработка)+передача+сбыт | L199: WARM
A200: 199 | B200: Забайкальский край | C200: Дульдургинский муниципальный район | D200: 76611000 | E200: Зуткулей | F200: 76611420 | G200: 28867637 | H200: МУП "Универсал+" | I200: 8002004189 | J200: 800201001 | K200: производство (некомбинированная выработка)+передача+сбыт | L200: WARM
... 589 more rows

Sheet modClassifierValidate (hidden)

Sheet modProv (hidden)

Sheet modHyp (hidden)

Sheet modList00 (hidden)

Sheet modList02 (hidden)

Sheet modList03 (hidden)

Sheet modList04 (hidden)

Sheet modList05 (hidden)

Sheet modList06 (hidden)

Sheet modList07 (hidden)

Sheet modfrmDateChoose (hidden)

Sheet modComm (hidden)

Sheet modThisWorkbook (hidden)

Sheet REESTR_MO (hidden)
A1: № | B1: МР | C1: МО | D1: МО_ОКТМО
A2: 1 | B2: Агинский муниципальный район | C2: Агинский муниципальный район | D2: 76602000
A3: 2 | B3: Агинский муниципальный район | C3: Амитхаша | D3: 76602402
A4: 3 | B4: Агинский муниципальный район | C4: Будулан | D4: 76602404
A5: 4 | B5: Агинский муниципальный район | C5: Гунэй | D5: 76602408
A6: 5 | B6: Агинский муниципальный район | C6: Кункур | D6: 76602412
A7: 6 | B7: Агинский муниципальный район | C7: Новоорловск | D7: 76602153
A8: 7 | B8: Агинский муниципальный район | C8: Орловский | D8: 76602154
A9: 8 | B9: Агинский муниципальный район | C9: Сахюрта | D9: 76602416
A10: 9 | B10: Агинский муниципальный район | C10: Судунтуй | D10: 76602420
A11: 10 | B11: Агинский муниципальный район | C11: Урда-Ага | D11: 76602424
A12: 11 | B12: Агинский муниципальный район | C12: Хойто-Ага | D12: 76602428
A13: 12 | B13: Агинский муниципальный район | C13: Цокто-Хангил | D13: 76602432
A14: 13 | B14: Агинский муниципальный район | C14: Челутай | D14: 76602436
A15: 14 | B15: Агинский муниципальный район | C15: Южный Аргалей | D15: 76602440
A16: 15 | B16: Акшинский муниципальный район | C16: Акшинский муниципальный район | D16: 76603000
A17: 16 | B17: Акшинский муниципальный район | C17: Акшинское | D17: 76603411
A18: 17 | B18: Акшинский муниципальный район | C18: Бытевское | D18: 76603420
A19: 18 | B19: Акшинский муниципальный район | C19: Курулгинское | D19: 76603427
A20: 19 | B20: Акшинский муниципальный район | C20: Могойтуйское | D20: 76603430
A21: 20 | B21: Акшинский муниципальный район | C21: Нарасунское | D21: 76603440
A22: 21 | B22: Акшинский муниципальный район | C22: Новокургатайское | D22: 76603450
A23: 22 | B23: Акшинский муниципальный район | C23: Оройское | D23: 76603460
A24: 23 | B24: Акшинский муниципальный район | C24: Тохторское | D24: 76603465
A25: 24 | B25: Акшинский муниципальный район | C25: Убур-Тохторское | D25: 76603468
A26: 25 | B26: Акшинский муниципальный район | C26: Улачинское | D26: 76603470
A27: 26 | B27: Акшинский муниципальный район | C27: Урейское | D27: 76603480
A28: 27 | B28: Акшинский муниципальный район | C28: Усть-Илинское | D28: 76603490
A29: 28 | B29: Александрово-Заводский муниципальный район | C29: Александрово-Заводский муниципальный район | D29: 76604000
A30: 29 | B30: Александрово-Заводский муниципальный район | C30: Александрово-Заводское | D30: 76604412
A31: 30 | B31: Александрово-Заводский муниципальный район | C31: Бохтинское | D31: 76604416
A32: 31 | B32: Александрово-Заводский муниципальный район | C32: Бутунтайское | D32: 76604418
A33: 32 | B33: Александрово-Заводский муниципальный район | C33: Кузнецовское | D33: 76604432
A34: 33 | B34: Александрово-Заводский муниципальный район | C34: Манкечурское | D34: 76604440
A35: 34 | B35: Александрово-Заводский муниципальный район | C35: Маньковское | D35: 76604443
A36: 35 | B36: Александрово-Заводский муниципальный район | C36: Николаевское | D36: 76604450
A37: 36 | B37: Александрово-Заводский муниципальный район | C37: Ново-Акатуйское | D37: 76604404
A38: 37 | B38: Александрово-Заводский муниципальный район | C38: Онон-Борзинское | D38: 76604456
A39: 38 | B39: Александрово-Заводский муниципальный район | C39: Первококуйское | D39: 76604458
A40: 39 | B40: Александрово-Заводский муниципальный район | C40: Савво-Борзинское | D40: 76604460
A41: 40 | B41: Александрово-Заводский муниципальный район | C41: Чиндагатайское | D41: 76604465
A42: 41 | B42: Александрово-Заводский муниципальный район | C42: Шаранчинское | D42: 76604470
A43: 42 | B43: Балейский муниципальный район | C43: Балейский муниципальный район | D43: 76606000
A44: 43 | B44: Балейский муниципальный район | C44: Городское поселение "Город Балей" | D44: 76606101
A45: 44 | B45: Балейский муниципальный район | C45: Жидкинское | D45: 76606410
A46: 45 | B46: Балейский муниципальный район | C46: Казаковское | D46: 76606405
A47: 46 | B47: Балейский муниципальный район | C47: Матусовское | D47: 76606425
A48: 47 | B48: Балейский муниципальный район | C48: Нижнегирюнинское | D48: 76606430
A49: 48 | B49: Балейский муниципальный район | C49: Нижнеильдиканское | D49: 76606415
A50: 49 | B50: Балейский муниципальный район | C50: Нижнекокуйское | D50: 76606435
A51: 50 | B51: Балейский муниципальный район | C51: Подойницинское | D51: 76606440
A52: 51 | B52: Балейский муниципальный район | C52: Ундино-Посельское | D52: 76606445
A53: 52 | B53: Балейский муниципальный район | C53: Ундинское | D53: 76606450
A54: 53 | B54: Борзинский муниципальный район | C54: Акурайское | D54: 76609408
A55: 54 | B55: Борзинский муниципальный район | C55: Биликтуйское | D55: 76609414
A56: 55 | B56: Борзинский муниципальный район | C56: Борзинский муниципальный район | D56: 76609000
A57: 56 | B57: Борзинский муниципальный район | C57: Борзинское | D57: 76609101
A58: 57 | B58: Борзинский муниципальный район | C58: Ключевское | D58: 76609420
A59: 58 | B59: Борзинский муниципальный район | C59: Кондуйское | D59: 76609424
A60: 59 | B60: Борзинский муниципальный район | C60: Курунзулайское | D60: 76609436
A61: 60 | B61: Борзинский муниципальный район | C61: Новоборзинское | D61: 76609440
A62: 61 | B62: Борзинский муниципальный район | C62: Переднебыркинское | D62: 76609460
A63: 62 | B63: Борзинский муниципальный район | C63: Приозёрное | D63: 76609462
A64: 63 | B64: Борзинский муниципальный район | C64: Соловьёвское | D64: 76609464
A65: 64 | B65: Борзинский муниципальный район | C65: Усть-Озёрское | D65: 76609468
A66: 65 | B66: Борзинский муниципальный район | C66: Хада-Булакское | D66: 76609472
A67: 66 | B67: Борзинский муниципальный район | C67: Цаган-Олуйское | D67: 76609476
A68: 67 | B68: Борзинский муниципальный район | C68: Чиндантское | D68: 76609480
A69: 68 | B69: Борзинский муниципальный район | C69: Шерловогорское | D69: 76609154
A70: 69 | B70: Борзинский муниципальный район | C70: Шоноктуйское | D70: 76609488
A71: 70 | B71: Борзинский муниципальный район | C71: Южное | D71: 76609452
A72: 71 | B72: Газимуро-Заводский муниципальный район | C72: Батаканское | D72: 76610403
A73: 72 | B73: Газимуро-Заводский муниципальный район | C73: Буруканское | D73: 76610405
A74: 73 | B74: Газимуро-Заводский муниципальный район | C74: Газимуро-Заводский муниципальный район | D74: 76610000
A75: 74 | B75: Газимуро-Заводский муниципальный район | C75: Газимуро-Заводское | D75: 76610409
A76: 75 | B76: Газимуро-Заводский муниципальный район | C76: Зеренское | D76: 76610412
A77: 76 | B77: Газимуро-Заводский муниципальный район | C77: Кактолгинское | D77: 76610418
A78: 77 | B78: Газимуро-Заводский муниципальный район | C78: Новоширокинское | D78: 76610433
A79: 78 | B79: Газимуро-Заводский муниципальный район | C79: Солонеченское | D79: 76610420
A80: 79 | B80: Газимуро-Заводский муниципальный район | C80: Трубачевское | D80: 76610426
A81: 80 | B81: Газимуро-Заводский муниципальный район | C81: Ушмунское | D81: 76610430
A82: 81 | B82: Город Краснокаменск и Краснокаменский муниципальный район | C82: Богдановское | D82: 76621408
A83: 82 | B83: Город Краснокаменск и Краснокаменский муниципальный район | C83: Город Краснокаменск и Краснокаменский муниципальный район | D83: 76621000
A84: 83 | B84: Город Краснокаменск и Краснокаменский муниципальный район | C84: Кайластуйское | D84: 76621420
A85: 84 | B85: Город Краснокаменск и Краснокаменский муниципальный район | C85: Капцегайтуйское | D85: 76621424
A86: 85 | B86: Город Краснокаменск и Краснокаменский муниципальный район | C86: Ковылинское | D86: 76621402
A87: 86 | B87: Город Краснокаменск и Краснокаменский муниципальный район | C87: Краснокаменское | D87: 76621101
A88: 87 | B88: Город Краснокаменск и Краснокаменский муниципальный район | C88: Маргуцекское | D88: 76621427
A89: 88 | B89: Город Краснокаменск и Краснокаменский муниципальный район | C89: Соктуй-Милозанское | D89: 76621430
A90: 89 | B90: Город Краснокаменск и Краснокаменский муниципальный район | C90: Среднеаргунское | D90: 76621434
A91: 90 | B91: Город Краснокаменск и Краснокаменский муниципальный район | C91: Целиннинское | D91: 76621445
A92: 91 | B92: Город Краснокаменск и Краснокаменский муниципальный район | C92: Юбилейнинское | D92: 76621450
A93: 92 | B93: Городской округ "Город Петровск-Забайкальский" | C93: Городской округ "Город Петровск-Забайкальский" | D93: 76715000
A94: 93 | B94: Городской округ "Город Чита" | C94: Городской округ "Город Чита" | D94: 76701000
A95: 94 | B95: Городской округ "Посёлок Горный (ЗАТО)" | C95: Городской округ "Посёлок Горный (ЗАТО)" | D95: 76785000
A96: 95 | B96: Городской округ "Поселок Агинское" | C96: Городской округ "Поселок Агинское" | D96: 76702000
A97: 96 | B97: Дульдургинский муниципальный район | C97: Алханай | D97: 76611404
A98: 97 | B98: Дульдургинский муниципальный район | C98: Ара-Иля | D98: 76611408
A99: 98 | B99: Дульдургинский муниципальный район | C99: Бальзино | D99: 76611412
A100: 99 | B100: Дульдургинский муниципальный район | C100: Дульдурга | D100: 76611416
A101: 100 | B101: Дульдургинский муниципальный район | C101: Дульдургинский муниципальный район | D101: 76611000
A102: 101 | B102: Дульдургинский муниципальный район | C102: Зуткулей | D102: 76611420
A103: 102 | B103: Дульдургинский муниципальный район | C103: Иля | D103: 76611422
A104: 103 | B104: Дульдургинский муниципальный район | C104: Таптанай | D104: 76611424
A105: 104 | B105: Дульдургинский муниципальный район | C105: Токчин | D105: 76611428
A106: 105 | B106: Дульдургинский муниципальный район | C106: Узон | D106: 76611432
A107: 106 | B107: Дульдургинский муниципальный район | C107: Чиндалей | D107: 76611436
A108: 107 | B108: Забайкальский муниципальный район | C108: Абагайтуйское | D108: 76612405
A109: 108 | B109: Забайкальский муниципальный район | C109: Билитуйское | D109: 76612415
A110: 109 | B110: Забайкальский муниципальный район | C110: Даурское | D110: 76612425
A111: 110 | B111: Забайкальский муниципальный район | C111: Забайкальский муниципальный район | D111: 76612000
A112: 111 | B112: Забайкальский муниципальный район | C112: Забайкальское | D112: 76612151
A113: 112 | B113: Забайкальский муниципальный район | C113: Красновеликанское | D113: 76612420
A114: 113 | B114: Забайкальский муниципальный район | C114: Рудник-Абагайтуйское | D114: 76612410
A115: 114 | B115: Забайкальский муниципальный район | C115: Степное | D115: 76612445
A116: 115 | B116: Забайкальский муниципальный район | C116: Черно-Озерское | D116: 76612455
A117: 116 | B117: Каларский муниципальный район | C117: Икабьинское | D117: 76615405
A118: 117 | B118: Каларский муниципальный район | C118: Каларский муниципальный район | D118: 76615000
A119: 118 | B119: Каларский муниципальный район | C119: Куандинское | D119: 76615407
A120: 119 | B120: Каларский муниципальный район | C120: Межселенная территория Каларского муниципального района, находящаяся вне границ городского и сельских поселений, с расположенным на этой территории с Средний Калар | D120: 76615701
A121: 120 | B121: Каларский муниципальный район | C121: Новочарское | D121: 76615156
A122: 121 | B122: Каларский муниципальный район | C122: Чапо-Ологское | D122: 76615433
A123: 122 | B123: Каларский муниципальный район | C123: Чарское | D123: 76615444
A124: 123 | B124: Калганский муниципальный район | C124: Буринское | D124: 76618411
A125: 124 | B125: Калганский муниципальный район | C125: Верхне-Калгуканское | D125: 76618414
A126: 125 | B126: Калганский муниципальный район | C126: Доновское | D126: 76618422
A127: 126 | B127: Калганский муниципальный район | C127: Кадаинское | D127: 76618430
A128: 127 | B128: Калганский муниципальный район | C128: Калганский муниципальный район | D128: 76618000
A129: 128 | B129: Калганский муниципальный район | C129: Калганское | D129: 76618433
A130: 129 | B130: Калганский муниципальный район | C130: Козловское | D130: 76618444
A131: 130 | B131: Калганский муниципальный район | C131: Нижне-Калгуканское | D131: 76618455
A132: 131 | B132: Калганский муниципальный район | C132: Средне-Борзинское | D132: 76618466
A133: 132 | B133: Калганский муниципальный район | C133: Чингильтуйское | D133: 76618477
A134: 133 | B134: Калганский муниципальный район | C134: Чупровское | D134: 76618488
A135: 134 | B135: Калганский муниципальный район | C135: Шивиинское | D135: 76618490
A136: 135 | B136: Карымский муниципальный район | C136: Адриановское | D136: 76620405
A137: 136 | B137: Карымский муниципальный район | C137: Большетуринское | D137: 76620409
A138: 137 | B138: Карымский муниципальный район | C138: Дарасунское | D138: 76620153
A139: 138 | B139: Карымский муниципальный район | C139: Жимбиринское | D139: 76620420
A140: 139 | B140: Карымский муниципальный район | C140: Кадахтинское | D140: 76620425
A141: 140 | B141: Карымский муниципальный район | C141: Кайдаловское | D141: 76620430
A142: 141 | B142: Карымский муниципальный район | C142: Карымский муниципальный район | D142: 76620000
A143: 142 | B143: Карымский муниципальный район | C143: Карымское | D143: 76620151
A144: 143 | B144: Карымский муниципальный район | C144: Курорт-Дарасунское | D144: 76620157
A145: 144 | B145: Карымский муниципальный район | C145: Маякинское | D145: 76620435
A146: 145 | B146: Карымский муниципальный район | C146: Нарын-Талачинское | D146: 76620440
A147: 146 | B147: Карымский муниципальный район | C147: Новодоронинское | D147: 76620445
A148: 147 | B148: Карымский муниципальный район | C148: Тыргетуйское | D148: 76620450
A149: 148 | B149: Карымский муниципальный район | C149: Урульгинское | D149: 76620455
A150: 149 | B150: Красночикойский муниципальный район | C150: Альбитуйское | D150: 76622405
A151: 150 | B151: Красночикойский муниципальный район | C151: Архангельское | D151: 76622410
A152: 151 | B152: Красночикойский муниципальный район | C152: Байхорское | D152: 76622415
A153: 152 | B153: Красночикойский муниципальный район | C153: Большеречинское | D153: 76622420
A154: 153 | B154: Красночикойский муниципальный район | C154: Верхнешергольджинское | D154: 76622425
A155: 154 | B155: Красночикойский муниципальный район | C155: Жиндойское | D155: 76622430
A156: 155 | B156: Красночикойский муниципальный район | C156: Захаровское | D156: 76622435
A157: 156 | B157: Красночикойский муниципальный район | C157: Конкинское | D157: 76622470
A158: 157 | B158: Красночикойский муниципальный район | C158: Коротковское | D158: 76622440
A159: 158 | B159: Красночикойский муниципальный район | C159: Красночикойский муниципальный район | D159: 76622000
A160: 159 | B160: Красночикойский муниципальный район | C160: Красночикойское | D160: 76622445
A161: 160 | B161: Красночикойский муниципальный район | C161: Малоархангельское | D161: 76622450
A162: 161 | B162: Красночикойский муниципальный район | C162: Межселенная территория Красночикойского муниципального района, находящаяся вне границ сельских поселений, с расположенным на этой территории с Семиозёрье | D162: 76622701
A163: 162 | B163: Красночикойский муниципальный район | C163: Мензинское | D163: 76622455
A164: 163 | B164: Красночикойский муниципальный район | C164: Урлукское | D164: 76622460
A165: 164 | B165: Красночикойский муниципальный район | C165: Черемховское | D165: 76622475
A166: 165 | B166: Красночикойский муниципальный район | C166: Шимбиликское | D166: 76622480
A167: 166 | B167: Кыринский муниципальный район | C167: Алтанское | D167: 76624405
A168: 167 | B168: Кыринский муниципальный район | C168: Билютуйское | D168: 76624410
A169: 168 | B169: Кыринский муниципальный район | C169: Верхне-Ульхунское | D169: 76624415
A170: 169 | B170: Кыринский муниципальный район | C170: Гаваньское | D170: 76624420
A171: 170 | B171: Кыринский муниципальный район | C171: Кыринский муниципальный район | D171: 76624000
A172: 171 | B172: Кыринский муниципальный район | C172: Кыринское | D172: 76624425
A173: 172 | B173: Кыринский муниципальный район | C173: Любавинское | D173: 76624430
A174: 173 | B174: Кыринский муниципальный район | C174: Мангутское | D174: 76624435
A175: 174 | B175: Кыринский муниципальный район | C175: Михайло-Павловское | D175: 76624440
A176: 175 | B176: Кыринский муниципальный район | C176: Мордойское | D176: 76624445
A177: 176 | B177: Кыринский муниципальный район | C177: Надежнинское | D177: 76624450
A178: 177 | B178: Кыринский муниципальный район | C178: Тарбальджейское | D178: 76624451
A179: 178 | B179: Кыринский муниципальный район | C179: Ульхун-Партионское | D179: 76624453
A180: 179 | B180: Кыринский муниципальный район | C180: Хапчерангинское | D180: 76624452
A181: 180 | B181: Кыринский муниципальный район | C181: Шумундинское | D181: 76624455
A182: 181 | B182: Могойтуйский муниципальный район | C182: Ага-Хангил | D182: 76625404
A183: 182 | B183: Могойтуйский муниципальный район | C183: Боржигантай | D183: 76625408
A184: 183 | B184: Могойтуйский муниципальный район | C184: Догой | D184: 76625412
A185: 184 | B185: Могойтуйский муниципальный район | C185: Зугалай | D185: 76625416
A186: 185 | B186: Могойтуйский муниципальный район | C186: Кусоча | D186: 76625448
A187: 186 | B187: Могойтуйский муниципальный район | C187: Могойтуй | D187: 76625151
A188: 187 | B188: Могойтуйский муниципальный район | C188: Могойтуйский муниципальный район | D188: 76625000
A189: 188 | B189: Могойтуйский муниципальный район | C189: Нуринск | D189: 76625418
A190: 189 | B190: Могойтуйский муниципальный район | C190: Ортуй | D190: 76625420
A191: 190 | B191: Могойтуйский муниципальный район | C191: Усть-Нарин | D191: 76625422
A192: 191 | B192: Могойтуйский муниципальный район | C192: Ушарбай | D192: 76625424
A193: 192 | B193: Могойтуйский муниципальный район | C193: Хара-Шибирь | D193: 76625428
A194: 193 | B194: Могойтуйский муниципальный район | C194: Хила | D194: 76625432
A195: 194 | B195: Могойтуйский муниципальный район | C195: Цаган-Ола | D195: 76625436
A196: 195 | B196: Могойтуйский муниципальный район | C196: Цаган-Челутай | D196: 76625440
A197: 196 | B197: Могойтуйский муниципальный район | C197: Цугол | D197: 76625444
A198: 197 | B198: Могочинский муниципальный район | C198: Амазарское | D198: 76626154
A199: 198 | B199: Могочинский муниципальный район | C199: Давендинское | D199: 76626156
A200: 199 | B200: Могочинский муниципальный район | C200: Ключевское | D200: 76626160
... 217 more rows

Sheet modfrmReestrMR (hidden)

Sheet modfrmCheckUpdates (hidden)

Sheet CopyList (hidden)
E12: Наименование поставщика | G12: № п/п | H12: Способ приобретения
H13: Способ приобретения | I13: Реквизиты договора
